Workbook

Sheet Calculator
A1: Hide Past
F3: Date of Release from Index Offense | H3: Independently Modelled Risk | L3: =IF($E$11="Yes","Event #","") ->  | M3: =IF($E$11="Yes","Date Removed from Community","") ->  | N3: =IF($E$11="Yes","Duration (Days)","") ->  | P3: Use calculators below to get duration in days
H4: Years in Community Offense Free | I4: Year End Date | J4: Residual Lifetime Risk | L4: =IF(AND($E$13>=1,F$13="How many times?"),"1","") ->  | P4: Start Date | R4: End Date | S4: Duration (Days)
A5: Recidivism Risk? | H5: 0 | I5: =IF(ISBLANK(E3),"",E3) ->  | J5: =IF($E$7="No", (IF($S$22>=20,GHR_RecidRates!AE2, IF($S$22=19,GHR_RecidRates!AF2, IF($S$22=18,GHR_RecidRates!AG2, IF($S$22=17,GHR_RecidRates!AH2, IF($S$22=16,GHR_RecidRates!AI2, IF($S$22=15,GHR_RecidRates!AJ2, IF($S$22=14,GHR_RecidRates!AK2, IF($S$22=13,GHR_RecidRates!AL2, IF($S$22=12,GHR_RecidRates!AM2, IF($S$22=11,GHR_RecidRates!AN2, IF($S$22=10,GHR_RecidRates!AO2, IF($S$22=9,GHR_RecidRates!AP2, IF($S$22=8,GHR_RecidRates!AQ2, IF($S$22=7,GHR_RecidRates!AR2, IF($S$22=6,GHR_RecidRates!AS2, IF($S$22=5,GHR_RecidRates!AT2, IF($S$22=4,GHR_RecidRates!AU2, IF($S$22=3,GHR_RecidRates!AV2, IF($S$22=2,GHR_RecidRates!AW2, IF($S$22=1,GHR_RecidRates!AX2, ""))))))))))))))))))))), IF(AND($E$7="Yes",$E$9>=$E$3), (IF($S$22>=20,GHR_RecidRates!AE2, IF($S$22=19,GHR_NS_RecidRates!AF2, IF($S$22=18,GHR_NS_RecidRates!AG2, IF($S$22=17,GHR_NS_RecidRates!AH2, IF($S$22=16,GHR_NS_RecidRates!AI2, IF($S$22=15,GHR_NS_RecidRates!AJ2, IF($S$22=14,GHR_NS_RecidRates!AK2, IF($S$22=13,GHR_NS_RecidRates!AL2, IF($S$22=12,GHR_NS_RecidRates!AM2, IF($S$22=11,GHR_NS_RecidRates!AN2, IF($S$22=10,GHR_NS_RecidRates!AO2, IF($S$22=9,GHR_NS_RecidRates!AP2, IF($S$22=8,GHR_NS_RecidRates!AQ2, IF($S$22=7,GHR_NS_RecidRates!AR2, IF($S$22=6,GHR_NS_RecidRates!AS2, IF($S$22=5,GHR_NS_RecidRates!AT2, IF($S$22=4,GHR_NS_RecidRates!AU2, IF($S$22=3,GHR_NS_RecidRates!AV2, IF($S$22=2,GHR_NS_RecidRates!AW2, IF($S$22=1,GHR_NS_RecidRates!AX2, ""))))))))))))))))))))), "")) ->  | L5: =IF(AND($E$13>=2,F$13="How many times?"),"2","") ->  | S5: =IF(OR(ISBLANK(P5),ISBLANK(R5)),"",DATEDIF(P5,R5,"D")) -> 
A6: At what year? | H6: 1 | I6: =IF(ISBLANK('Time Accounting'!$J$22),"",'Time Accounting'!$J$22) ->  | J6: =IF($E$7="No", (IF($S$22>=20,GHR_RecidRates!AE3, IF($S$22=19,GHR_RecidRates!AF3, IF($S$22=18,GHR_RecidRates!AG3, IF($S$22=17,GHR_RecidRates!AH3, IF($S$22=16,GHR_RecidRates!AI3, IF($S$22=15,GHR_RecidRates!AJ3, IF($S$22=14,GHR_RecidRates!AK3, IF($S$22=13,GHR_RecidRates!AL3, IF($S$22=12,GHR_RecidRates!AM3, IF($S$22=11,GHR_RecidRates!AN3, IF($S$22=10,GHR_RecidRates!AO3, IF($S$22=9,GHR_RecidRates!AP3, IF($S$22=8,GHR_RecidRates!AQ3, IF($S$22=7,GHR_RecidRates!AR3, IF($S$22=6,GHR_RecidRates!AS3, IF($S$22=5,GHR_RecidRates!AT3, IF($S$22=4,GHR_RecidRates!AU3, IF($S$22=3,GHR_RecidRates!AV3, IF($S$22=2,GHR_RecidRates!AW3, IF($S$22=1,GHR_RecidRates!AX3, ""))))))))))))))))))))), IF(AND($E$7="Yes",$E$9>=$E$3), (IF($S$22>=20,GHR_NS_RecidRates!AE3, IF($S$22=19,GHR_NS_RecidRates!AF3, IF($S$22=18,GHR_NS_RecidRates!AG3, IF($S$22=17,GHR_NS_RecidRates!AH3, IF($S$22=16,GHR_NS_RecidRates!AI3, IF($S$22=15,GHR_NS_RecidRates!AJ3, IF($S$22=14,GHR_NS_RecidRates!AK3, IF($S$22=13,GHR_NS_RecidRates!AL3, IF($S$22=12,GHR_NS_RecidRates!AM3, IF($S$22=11,GHR_NS_RecidRates!AN3, IF($S$22=10,GHR_NS_RecidRates!AO3, IF($S$22=9,GHR_NS_RecidRates!AP3, IF($S$22=8,GHR_NS_RecidRates!AQ3, IF($S$22=7,GHR_NS_RecidRates!AR3, IF($S$22=6,GHR_NS_RecidRates!AS3, IF($S$22=5,GHR_NS_RecidRates!AT3, IF($S$22=4,GHR_NS_RecidRates!AU3, IF($S$22=3,GHR_NS_RecidRates!AV3, IF($S$22=2,GHR_NS_RecidRates!AW3, IF($S$22=1,GHR_NS_RecidRates!AX3, ""))))))))))))))))))))), "")) ->  | L6: =IF(AND($E$13>=3,F$13="How many times?"),"3","") -> 
F7: Any nonsexual offense convictions after index offense while in the community? | H7: 2 | I7: =IF(ISBLANK('Time Accounting'!L$22),"",'Time Accounting'!L$22) ->  | J7: =IF($E$7="No", (IF($S$22>=20,GHR_RecidRates!AE4, IF($S$22=19,GHR_RecidRates!AF4, IF($S$22=18,GHR_RecidRates!AG4, IF($S$22=17,GHR_RecidRates!AH4, IF($S$22=16,GHR_RecidRates!AI4, IF($S$22=15,GHR_RecidRates!AJ4, IF($S$22=14,GHR_RecidRates!AK4, IF($S$22=13,GHR_RecidRates!AL4, IF($S$22=12,GHR_RecidRates!AM4, IF($S$22=11,GHR_RecidRates!AN4, IF($S$22=10,GHR_RecidRates!AO4, IF($S$22=9,GHR_RecidRates!AP4, IF($S$22=8,GHR_RecidRates!AQ4, IF($S$22=7,GHR_RecidRates!AR4, IF($S$22=6,GHR_RecidRates!AS4, IF($S$22=5,GHR_RecidRates!AT4, IF($S$22=4,GHR_RecidRates!AU4, IF($S$22=3,GHR_RecidRates!AV4, IF($S$22=2,GHR_RecidRates!AW4, IF($S$22=1,GHR_RecidRates!AX4, ""))))))))))))))))))))), IF(AND($E$7="Yes",$E$9>=$E$3), (IF($S$22>=20,GHR_NS_RecidRates!AE4, IF($S$22=19,GHR_NS_RecidRates!AF4, IF($S$22=18,GHR_NS_RecidRates!AG4, IF($S$22=17,GHR_NS_RecidRates!AH4, IF($S$22=16,GHR_NS_RecidRates!AI4, IF($S$22=15,GHR_NS_RecidRates!AJ4, IF($S$22=14,GHR_NS_RecidRates!AK4, IF($S$22=13,GHR_NS_RecidRates!AL4, IF($S$22=12,GHR_NS_RecidRates!AM4, IF($S$22=11,GHR_NS_RecidRates!AN4, IF($S$22=10,GHR_NS_RecidRates!AO4, IF($S$22=9,GHR_NS_RecidRates!AP4, IF($S$22=8,GHR_NS_RecidRates!AQ4, IF($S$22=7,GHR_NS_RecidRates!AR4, IF($S$22=6,GHR_NS_RecidRates!AS4, IF($S$22=5,GHR_NS_RecidRates!AT4, IF($S$22=4,GHR_NS_RecidRates!AU4, IF($S$22=3,GHR_NS_RecidRates!AV4, IF($S$22=2,GHR_NS_RecidRates!AW4, IF($S$22=1,GHR_NS_RecidRates!AX4, ""))))))))))))))))))))), "")) ->  | L7: =IF(AND($E$13>=4,F$13="How many times?"),"4","") ->  | P7: Years | Q7: Months | R7: Weeks | S7: Duration (Days)
H8: 3 | I8: =IF(ISBLANK('Time Accounting'!$N$22),"",'Time Accounting'!$N$22) ->  | J8: =IF($E$7="No", (IF($S$22>=20,GHR_RecidRates!AE5, IF($S$22=19,GHR_RecidRates!AF5, IF($S$22=18,GHR_RecidRates!AG5, IF($S$22=17,GHR_RecidRates!AH5, IF($S$22=16,GHR_RecidRates!AI5, IF($S$22=15,GHR_RecidRates!AJ5, IF($S$22=14,GHR_RecidRates!AK5, IF($S$22=13,GHR_RecidRates!AL5, IF($S$22=12,GHR_RecidRates!AM5, IF($S$22=11,GHR_RecidRates!AN5, IF($S$22=10,GHR_RecidRates!AO5, IF($S$22=9,GHR_RecidRates!AP5, IF($S$22=8,GHR_RecidRates!AQ5, IF($S$22=7,GHR_RecidRates!AR5, IF($S$22=6,GHR_RecidRates!AS5, IF($S$22=5,GHR_RecidRates!AT5, IF($S$22=4,GHR_RecidRates!AU5, IF($S$22=3,GHR_RecidRates!AV5, IF($S$22=2,GHR_RecidRates!AW5, IF($S$22=1,GHR_RecidRates!AX5, ""))))))))))))))))))))), IF(AND($E$7="Yes",$E$9>=$E$3), (IF($S$22>=20,GHR_NS_RecidRates!AE5, IF($S$22=19,GHR_NS_RecidRates!AF5, IF($S$22=18,GHR_NS_RecidRates!AG5, IF($S$22=17,GHR_NS_RecidRates!AH5, IF($S$22=16,GHR_NS_RecidRates!AI5, IF($S$22=15,GHR_NS_RecidRates!AJ5, IF($S$22=14,GHR_NS_RecidRates!AK5, IF($S$22=13,GHR_NS_RecidRates!AL5, IF($S$22=12,GHR_NS_RecidRates!AM5, IF($S$22=11,GHR_NS_RecidRates!AN5, IF($S$22=10,GHR_NS_RecidRates!AO5, IF($S$22=9,GHR_NS_RecidRates!AP5, IF($S$22=8,GHR_NS_RecidRates!AQ5, IF($S$22=7,GHR_NS_RecidRates!AR5, IF($S$22=6,GHR_NS_RecidRates!AS5, IF($S$22=5,GHR_NS_RecidRates!AT5, IF($S$22=4,GHR_NS_RecidRates!AU5, IF($S$22=3,GHR_NS_RecidRates!AV5, IF($S$22=2,GHR_NS_RecidRates!AW5, IF($S$22=1,GHR_NS_RecidRates!AX5, ""))))))))))))))))))))), "")) ->  | L8: =IF(AND($E$13>=5,F$13="How many times?"),"5","") ->  | S8: =IF(AND(ISBLANK(P8),ISBLANK(Q8),ISBLANK(R8)),"",TRUNC(P8*365.25+Q8*(365.25/12)+R8*(365.25/52))) -> 
F9: =IF(E7="Yes","Date of first one","") ->  | H9: 4 | I9: =IF(ISBLANK('Time Accounting'!$P$22),"",'Time Accounting'!$P$22) ->  | J9: =IF($E$7="No", (IF($S$22>=20,GHR_RecidRates!AE6, IF($S$22=19,GHR_RecidRates!AF6, IF($S$22=18,GHR_RecidRates!AG6, IF($S$22=17,GHR_RecidRates!AH6, IF($S$22=16,GHR_RecidRates!AI6, IF($S$22=15,GHR_RecidRates!AJ6, IF($S$22=14,GHR_RecidRates!AK6, IF($S$22=13,GHR_RecidRates!AL6, IF($S$22=12,GHR_RecidRates!AM6, IF($S$22=11,GHR_RecidRates!AN6, IF($S$22=10,GHR_RecidRates!AO6, IF($S$22=9,GHR_RecidRates!AP6, IF($S$22=8,GHR_RecidRates!AQ6, IF($S$22=7,GHR_RecidRates!AR6, IF($S$22=6,GHR_RecidRates!AS6, IF($S$22=5,GHR_RecidRates!AT6, IF($S$22=4,GHR_RecidRates!AU6, IF($S$22=3,GHR_RecidRates!AV6, IF($S$22=2,GHR_RecidRates!AW6, IF($S$22=1,GHR_RecidRates!AX6, ""))))))))))))))))))))), IF(AND($E$7="Yes",$E$9>=$E$3), (IF($S$22>=20,GHR_NS_RecidRates!AE6, IF($S$22=19,GHR_NS_RecidRates!AF6, IF($S$22=18,GHR_NS_RecidRates!AG6, IF($S$22=17,GHR_NS_RecidRates!AH6, IF($S$22=16,GHR_NS_RecidRates!AI6, IF($S$22=15,GHR_NS_RecidRates!AJ6, IF($S$22=14,GHR_NS_RecidRates!AK6, IF($S$22=13,GHR_NS_RecidRates!AL6, IF($S$22=12,GHR_NS_RecidRates!AM6, IF($S$22=11,GHR_NS_RecidRates!AN6, IF($S$22=10,GHR_NS_RecidRates!AO6, IF($S$22=9,GHR_NS_RecidRates!AP6, IF($S$22=8,GHR_NS_RecidRates!AQ6, IF($S$22=7,GHR_NS_RecidRates!AR6, IF($S$22=6,GHR_NS_RecidRates!AS6, IF($S$22=5,GHR_NS_RecidRates!AT6, IF($S$22=4,GHR_NS_RecidRates!AU6, IF($S$22=3,GHR_NS_RecidRates!AV6, IF($S$22=2,GHR_NS_RecidRates!AW6, IF($S$22=1,GHR_NS_RecidRates!AX6, ""))))))))))))))))))))), "")) ->  | L9: =IF(AND($E$13>=6,F$13="How many times?"),"6","") -> 
H10: 5 | I10: =IF(ISBLANK('Time Accounting'!$R$22),"",'Time Accounting'!$R$22) ->  | J10: =IF($E$7="No", (IF($S$22>=20,GHR_RecidRates!AE7, IF($S$22=19,GHR_RecidRates!AF7, IF($S$22=18,GHR_RecidRates!AG7, IF($S$22=17,GHR_RecidRates!AH7, IF($S$22=16,GHR_RecidRates!AI7, IF($S$22=15,GHR_RecidRates!AJ7, IF($S$22=14,GHR_RecidRates!AK7, IF($S$22=13,GHR_RecidRates!AL7, IF($S$22=12,GHR_RecidRates!AM7, IF($S$22=11,GHR_RecidRates!AN7, IF($S$22=10,GHR_RecidRates!AO7, IF($S$22=9,GHR_RecidRates!AP7, IF($S$22=8,GHR_RecidRates!AQ7, IF($S$22=7,GHR_RecidRates!AR7, IF($S$22=6,GHR_RecidRates!AS7, IF($S$22=5,GHR_RecidRates!AT7, IF($S$22=4,GHR_RecidRates!AU7, IF($S$22=3,GHR_RecidRates!AV7, IF($S$22=2,GHR_RecidRates!AW7, IF($S$22=1,GHR_RecidRates!AX7, ""))))))))))))))))))))), IF(AND($E$7="Yes",$E$9>=$E$3), (IF($S$22>=20,GHR_NS_RecidRates!AE7, IF($S$22=19,GHR_NS_RecidRates!AF7, IF($S$22=18,GHR_NS_RecidRates!AG7, IF($S$22=17,GHR_NS_RecidRates!AH7, IF($S$22=16,GHR_NS_RecidRates!AI7, IF($S$22=15,GHR_NS_RecidRates!AJ7, IF($S$22=14,GHR_NS_RecidRates!AK7, IF($S$22=13,GHR_NS_RecidRates!AL7, IF($S$22=12,GHR_NS_RecidRates!AM7, IF($S$22=11,GHR_NS_RecidRates!AN7, IF($S$22=10,GHR_NS_RecidRates!AO7, IF($S$22=9,GHR_NS_RecidRates!AP7, IF($S$22=8,GHR_NS_RecidRates!AQ7, IF($S$22=7,GHR_NS_RecidRates!AR7, IF($S$22=6,GHR_NS_RecidRates!AS7, IF($S$22=5,GHR_NS_RecidRates!AT7, IF($S$22=4,GHR_NS_RecidRates!AU7, IF($S$22=3,GHR_NS_RecidRates!AV7, IF($S$22=2,GHR_NS_RecidRates!AW7, IF($S$22=1,GHR_NS_RecidRates!AX7, ""))))))))))))))))))))), "")) ->  | L10: =IF(AND($E$13>=7,F$13="How many times?"),"7","") -> 
F11: Offender removed from community for any reason after release from Index Offense? | H11: 6 | I11: =IF(ISBLANK('Time Accounting'!$T$22),"",'Time Accounting'!$T$22) ->  | J11: =IF($E$7="No", (IF($S$22>=20,GHR_RecidRates!AE8, IF($S$22=19,GHR_RecidRates!AF8, IF($S$22=18,GHR_RecidRates!AG8, IF($S$22=17,GHR_RecidRates!AH8, IF($S$22=16,GHR_RecidRates!AI8, IF($S$22=15,GHR_RecidRates!AJ8, IF($S$22=14,GHR_RecidRates!AK8, IF($S$22=13,GHR_RecidRates!AL8, IF($S$22=12,GHR_RecidRates!AM8, IF($S$22=11,GHR_RecidRates!AN8, IF($S$22=10,GHR_RecidRates!AO8, IF($S$22=9,GHR_RecidRates!AP8, IF($S$22=8,GHR_RecidRates!AQ8, IF($S$22=7,GHR_RecidRates!AR8, IF($S$22=6,GHR_RecidRates!AS8, IF($S$22=5,GHR_RecidRates!AT8, IF($S$22=4,GHR_RecidRates!AU8, IF($S$22=3,GHR_RecidRates!AV8, IF($S$22=2,GHR_RecidRates!AW8, IF($S$22=1,GHR_RecidRates!AX8, ""))))))))))))))))))))), IF(AND($E$7="Yes",$E$9>=$E$3), (IF($S$22>=20,GHR_NS_RecidRates!AE8, IF($S$22=19,GHR_NS_RecidRates!AF8, IF($S$22=18,GHR_NS_RecidRates!AG8, IF($S$22=17,GHR_NS_RecidRates!AH8, IF($S$22=16,GHR_NS_RecidRates!AI8, IF($S$22=15,GHR_NS_RecidRates!AJ8, IF($S$22=14,GHR_NS_RecidRates!AK8, IF($S$22=13,GHR_NS_RecidRates!AL8, IF($S$22=12,GHR_NS_RecidRates!AM8, IF($S$22=11,GHR_NS_RecidRates!AN8, IF($S$22=10,GHR_NS_RecidRates!AO8, IF($S$22=9,GHR_NS_RecidRates!AP8, IF($S$22=8,GHR_NS_RecidRates!AQ8, IF($S$22=7,GHR_NS_RecidRates!AR8, IF($S$22=6,GHR_NS_RecidRates!AS8, IF($S$22=5,GHR_NS_RecidRates!AT8, IF($S$22=4,GHR_NS_RecidRates!AU8, IF($S$22=3,GHR_NS_RecidRates!AV8, IF($S$22=2,GHR_NS_RecidRates!AW8, IF($S$22=1,GHR_NS_RecidRates!AX8, ""))))))))))))))))))))), "")) ->  | L11: =IF(AND($E$13>=8,F$13="How many times?"),"8","") -> 
H12: 7 | I12: =IF(ISBLANK('Time Accounting'!$V$22),"",'Time Accounting'!$V$22) ->  | J12: =IF($E$7="No", (IF($S$22>=20,GHR_RecidRates!AE9, IF($S$22=19,GHR_RecidRates!AF9, IF($S$22=18,GHR_RecidRates!AG9, IF($S$22=17,GHR_RecidRates!AH9, IF($S$22=16,GHR_RecidRates!AI9, IF($S$22=15,GHR_RecidRates!AJ9, IF($S$22=14,GHR_RecidRates!AK9, IF($S$22=13,GHR_RecidRates!AL9, IF($S$22=12,GHR_RecidRates!AM9, IF($S$22=11,GHR_RecidRates!AN9, IF($S$22=10,GHR_RecidRates!AO9, IF($S$22=9,GHR_RecidRates!AP9, IF($S$22=8,GHR_RecidRates!AQ9, IF($S$22=7,GHR_RecidRates!AR9, IF($S$22=6,GHR_RecidRates!AS9, IF($S$22=5,GHR_RecidRates!AT9, IF($S$22=4,GHR_RecidRates!AU9, IF($S$22=3,GHR_RecidRates!AV9, IF($S$22=2,GHR_RecidRates!AW9, IF($S$22=1,GHR_RecidRates!AX9, ""))))))))))))))))))))), IF(AND($E$7="Yes",$E$9>=$E$3), (IF($S$22>=20,GHR_NS_RecidRates!AE9, IF($S$22=19,GHR_NS_RecidRates!AF9, IF($S$22=18,GHR_NS_RecidRates!AG9, IF($S$22=17,GHR_NS_RecidRates!AH9, IF($S$22=16,GHR_NS_RecidRates!AI9, IF($S$22=15,GHR_NS_RecidRates!AJ9, IF($S$22=14,GHR_NS_RecidRates!AK9, IF($S$22=13,GHR_NS_RecidRates!AL9, IF($S$22=12,GHR_NS_RecidRates!AM9, IF($S$22=11,GHR_NS_RecidRates!AN9, IF($S$22=10,GHR_NS_RecidRates!AO9, IF($S$22=9,GHR_NS_RecidRates!AP9, IF($S$22=8,GHR_NS_RecidRates!AQ9, IF($S$22=7,GHR_NS_RecidRates!AR9, IF($S$22=6,GHR_NS_RecidRates!AS9, IF($S$22=5,GHR_NS_RecidRates!AT9, IF($S$22=4,GHR_NS_RecidRates!AU9, IF($S$22=3,GHR_NS_RecidRates!AV9, IF($S$22=2,GHR_NS_RecidRates!AW9, IF($S$22=1,GHR_NS_RecidRates!AX9, ""))))))))))))))))))))), "")) ->  | L12: =IF(AND($E$13>=9,F$13="How many times?"),"9","") -> 
F13: =IF(E11="Yes","How many times?","") ->  | H13: 8 | I13: =IF(ISBLANK('Time Accounting'!$X$22),"",'Time Accounting'!$X$22) ->  | J13: =IF($E$7="No", (IF($S$22>=20,GHR_RecidRates!AE10, IF($S$22=19,GHR_RecidRates!AF10, IF($S$22=18,GHR_RecidRates!AG10, IF($S$22=17,GHR_RecidRates!AH10, IF($S$22=16,GHR_RecidRates!AI10, IF($S$22=15,GHR_RecidRates!AJ10, IF($S$22=14,GHR_RecidRates!AK10, IF($S$22=13,GHR_RecidRates!AL10, IF($S$22=12,GHR_RecidRates!AM10, IF($S$22=11,GHR_RecidRates!AN10, IF($S$22=10,GHR_RecidRates!AO10, IF($S$22=9,GHR_RecidRates!AP10, IF($S$22=8,GHR_RecidRates!AQ10, IF($S$22=7,GHR_RecidRates!AR10, IF($S$22=6,GHR_RecidRates!AS10, IF($S$22=5,GHR_RecidRates!AT10, IF($S$22=4,GHR_RecidRates!AU10, IF($S$22=3,GHR_RecidRates!AV10, IF($S$22=2,GHR_RecidRates!AW10, IF($S$22=1,GHR_RecidRates!AX10, ""))))))))))))))))))))), IF(AND($E$7="Yes",$E$9>=$E$3), (IF($S$22>=20,GHR_NS_RecidRates!AE10, IF($S$22=19,GHR_NS_RecidRates!AF10, IF($S$22=18,GHR_NS_RecidRates!AG10, IF($S$22=17,GHR_NS_RecidRates!AH10, IF($S$22=16,GHR_NS_RecidRates!AI10, IF($S$22=15,GHR_NS_RecidRates!AJ10, IF($S$22=14,GHR_NS_RecidRates!AK10, IF($S$22=13,GHR_NS_RecidRates!AL10, IF($S$22=12,GHR_NS_RecidRates!AM10, IF($S$22=11,GHR_NS_RecidRates!AN10, IF($S$22=10,GHR_NS_RecidRates!AO10, IF($S$22=9,GHR_NS_RecidRates!AP10, IF($S$22=8,GHR_NS_RecidRates!AQ10, IF($S$22=7,GHR_NS_RecidRates!AR10, IF($S$22=6,GHR_NS_RecidRates!AS10, IF($S$22=5,GHR_NS_RecidRates!AT10, IF($S$22=4,GHR_NS_RecidRates!AU10, IF($S$22=3,GHR_NS_RecidRates!AV10, IF($S$22=2,GHR_NS_RecidRates!AW10, IF($S$22=1,GHR_NS_RecidRates!AX10, ""))))))))))))))))))))), "")) ->  | L13: =IF(AND($E$13>=10,F$13="How many times?"),"10","") -> 
H14: 9 | I14: =IF(ISBLANK('Time Accounting'!$Z$22),"",'Time Accounting'!$Z$22) ->  | J14: =IF($E$7="No", (IF($S$22>=20,GHR_RecidRates!AE11, IF($S$22=19,GHR_RecidRates!AF11, IF($S$22=18,GHR_RecidRates!AG11, IF($S$22=17,GHR_RecidRates!AH11, IF($S$22=16,GHR_RecidRates!AI11, IF($S$22=15,GHR_RecidRates!AJ11, IF($S$22=14,GHR_RecidRates!AK11, IF($S$22=13,GHR_RecidRates!AL11, IF($S$22=12,GHR_RecidRates!AM11, IF($S$22=11,GHR_RecidRates!AN11, IF($S$22=10,GHR_RecidRates!AO11, IF($S$22=9,GHR_RecidRates!AP11, IF($S$22=8,GHR_RecidRates!AQ11, IF($S$22=7,GHR_RecidRates!AR11, IF($S$22=6,GHR_RecidRates!AS11, IF($S$22=5,GHR_RecidRates!AT11, IF($S$22=4,GHR_RecidRates!AU11, IF($S$22=3,GHR_RecidRates!AV11, IF($S$22=2,GHR_RecidRates!AW11, IF($S$22=1,GHR_RecidRates!AX11, ""))))))))))))))))))))), IF(AND($E$7="Yes",$E$9>=$E$3), (IF($S$22>=20,GHR_NS_RecidRates!AE11, IF($S$22=19,GHR_NS_RecidRates!AF11, IF($S$22=18,GHR_NS_RecidRates!AG11, IF($S$22=17,GHR_NS_RecidRates!AH11, IF($S$22=16,GHR_NS_RecidRates!AI11, IF($S$22=15,GHR_NS_RecidRates!AJ11, IF($S$22=14,GHR_NS_RecidRates!AK11, IF($S$22=13,GHR_NS_RecidRates!AL11, IF($S$22=12,GHR_NS_RecidRates!AM11, IF($S$22=11,GHR_NS_RecidRates!AN11, IF($S$22=10,GHR_NS_RecidRates!AO11, IF($S$22=9,GHR_NS_RecidRates!AP11, IF($S$22=8,GHR_NS_RecidRates!AQ11, IF($S$22=7,GHR_NS_RecidRates!AR11, IF($S$22=6,GHR_NS_RecidRates!AS11, IF($S$22=5,GHR_NS_RecidRates!AT11, IF($S$22=4,GHR_NS_RecidRates!AU11, IF($S$22=3,GHR_NS_RecidRates!AV11, IF($S$22=2,GHR_NS_RecidRates!AW11, IF($S$22=1,GHR_NS_RecidRates!AX11, ""))))))))))))))))))))), "")) -> 
H15: 10 | I15: =IF(ISBLANK('Time Accounting'!$AB$22),"",'Time Accounting'!$AB$22) ->  | J15: =IF($E$7="No", (IF($S$22>=20,GHR_RecidRates!AE12, IF($S$22=19,GHR_RecidRates!AF12, IF($S$22=18,GHR_RecidRates!AG12, IF($S$22=17,GHR_RecidRates!AH12, IF($S$22=16,GHR_RecidRates!AI12, IF($S$22=15,GHR_RecidRates!AJ12, IF($S$22=14,GHR_RecidRates!AK12, IF($S$22=13,GHR_RecidRates!AL12, IF($S$22=12,GHR_RecidRates!AM12, IF($S$22=11,GHR_RecidRates!AN12, IF($S$22=10,GHR_RecidRates!AO12, IF($S$22=9,GHR_RecidRates!AP12, IF($S$22=8,GHR_RecidRates!AQ12, IF($S$22=7,GHR_RecidRates!AR12, IF($S$22=6,GHR_RecidRates!AS12, IF($S$22=5,GHR_RecidRates!AT12, IF($S$22=4,GHR_RecidRates!AU12, IF($S$22=3,GHR_RecidRates!AV12, IF($S$22=2,GHR_RecidRates!AW12, IF($S$22=1,GHR_RecidRates!AX12, ""))))))))))))))))))))), IF(AND($E$7="Yes",$E$9>=$E$3), (IF($S$22>=20,GHR_NS_RecidRates!AE12, IF($S$22=19,GHR_NS_RecidRates!AF12, IF($S$22=18,GHR_NS_RecidRates!AG12, IF($S$22=17,GHR_NS_RecidRates!AH12, IF($S$22=16,GHR_NS_RecidRates!AI12, IF($S$22=15,GHR_NS_RecidRates!AJ12, IF($S$22=14,GHR_NS_RecidRates!AK12, IF($S$22=13,GHR_NS_RecidRates!AL12, IF($S$22=12,GHR_NS_RecidRates!AM12, IF($S$22=11,GHR_NS_RecidRates!AN12, IF($S$22=10,GHR_NS_RecidRates!AO12, IF($S$22=9,GHR_NS_RecidRates!AP12, IF($S$22=8,GHR_NS_RecidRates!AQ12, IF($S$22=7,GHR_NS_RecidRates!AR12, IF($S$22=6,GHR_NS_RecidRates!AS12, IF($S$22=5,GHR_NS_RecidRates!AT12, IF($S$22=4,GHR_NS_RecidRates!AU12, IF($S$22=3,GHR_NS_RecidRates!AV12, IF($S$22=2,GHR_NS_RecidRates!AW12, IF($S$22=1,GHR_NS_RecidRates!AX12, ""))))))))))))))))))))), "")) ->  | L15: =IF(E13>10,"If the offender was removed from the community more than 10 times, aggregate all time removed from the communty after then 10th time in with the 10th event duration.","") ->  | P15: LN Units Change | Q15: Model
H16: 11 | I16: =IF(ISBLANK('Time Accounting'!$AD$22),"",'Time Accounting'!$AD$22) ->  | J16: =IF($E$7="No", (IF($S$22>=20,GHR_RecidRates!AE13, IF($S$22=19,GHR_RecidRates!AF13, IF($S$22=18,GHR_RecidRates!AG13, IF($S$22=17,GHR_RecidRates!AH13, IF($S$22=16,GHR_RecidRates!AI13, IF($S$22=15,GHR_RecidRates!AJ13, IF($S$22=14,GHR_RecidRates!AK13, IF($S$22=13,GHR_RecidRates!AL13, IF($S$22=12,GHR_RecidRates!AM13, IF($S$22=11,GHR_RecidRates!AN13, IF($S$22=10,GHR_RecidRates!AO13, IF($S$22=9,GHR_RecidRates!AP13, IF($S$22=8,GHR_RecidRates!AQ13, IF($S$22=7,GHR_RecidRates!AR13, IF($S$22=6,GHR_RecidRates!AS13, IF($S$22=5,GHR_RecidRates!AT13, IF($S$22=4,GHR_RecidRates!AU13, IF($S$22=3,GHR_RecidRates!AV13, IF($S$22=2,GHR_RecidRates!AW13, IF($S$22=1,GHR_RecidRates!AX13, ""))))))))))))))))))))), IF(AND($E$7="Yes",$E$9>=$E$3), (IF($S$22>=20,GHR_NS_RecidRates!AE13, IF($S$22=19,GHR_NS_RecidRates!AF13, IF($S$22=18,GHR_NS_RecidRates!AG13, IF($S$22=17,GHR_NS_RecidRates!AH13, IF($S$22=16,GHR_NS_RecidRates!AI13, IF($S$22=15,GHR_NS_RecidRates!AJ13, IF($S$22=14,GHR_NS_RecidRates!AK13, IF($S$22=13,GHR_NS_RecidRates!AL13, IF($S$22=12,GHR_NS_RecidRates!AM13, IF($S$22=11,GHR_NS_RecidRates!AN13, IF($S$22=10,GHR_NS_RecidRates!AO13, IF($S$22=9,GHR_NS_RecidRates!AP13, IF($S$22=8,GHR_NS_RecidRates!AQ13, IF($S$22=7,GHR_NS_RecidRates!AR13, IF($S$22=6,GHR_NS_RecidRates!AS13, IF($S$22=5,GHR_NS_RecidRates!AT13, IF($S$22=4,GHR_NS_RecidRates!AU13, IF($S$22=3,GHR_NS_RecidRates!AV13, IF($S$22=2,GHR_NS_RecidRates!AW13, IF($S$22=1,GHR_NS_RecidRates!AX13, ""))))))))))))))))))))), "")) ->  | P16: -0.13 | Q16: Year offense free with no nonsexual reoffense
H17: 12 | I17: =IF(ISBLANK('Time Accounting'!$AF$22),"",'Time Accounting'!$AF$22) ->  | J17: =IF($E$7="No", (IF($S$22>=20,GHR_RecidRates!AE14, IF($S$22=19,GHR_RecidRates!AF14, IF($S$22=18,GHR_RecidRates!AG14, IF($S$22=17,GHR_RecidRates!AH14, IF($S$22=16,GHR_RecidRates!AI14, IF($S$22=15,GHR_RecidRates!AJ14, IF($S$22=14,GHR_RecidRates!AK14, IF($S$22=13,GHR_RecidRates!AL14, IF($S$22=12,GHR_RecidRates!AM14, IF($S$22=11,GHR_RecidRates!AN14, IF($S$22=10,GHR_RecidRates!AO14, IF($S$22=9,GHR_RecidRates!AP14, IF($S$22=8,GHR_RecidRates!AQ14, IF($S$22=7,GHR_RecidRates!AR14, IF($S$22=6,GHR_RecidRates!AS14, IF($S$22=5,GHR_RecidRates!AT14, IF($S$22=4,GHR_RecidRates!AU14, IF($S$22=3,GHR_RecidRates!AV14, IF($S$22=2,GHR_RecidRates!AW14, IF($S$22=1,GHR_RecidRates!AX14, ""))))))))))))))))))))), IF(AND($E$7="Yes",$E$9>=$E$3), (IF($S$22>=20,GHR_NS_RecidRates!AE14, IF($S$22=19,GHR_NS_RecidRates!AF14, IF($S$22=18,GHR_NS_RecidRates!AG14, IF($S$22=17,GHR_NS_RecidRates!AH14, IF($S$22=16,GHR_NS_RecidRates!AI14, IF($S$22=15,GHR_NS_RecidRates!AJ14, IF($S$22=14,GHR_NS_RecidRates!AK14, IF($S$22=13,GHR_NS_RecidRates!AL14, IF($S$22=12,GHR_NS_RecidRates!AM14, IF($S$22=11,GHR_NS_RecidRates!AN14, IF($S$22=10,GHR_NS_RecidRates!AO14, IF($S$22=9,GHR_NS_RecidRates!AP14, IF($S$22=8,GHR_NS_RecidRates!AQ14, IF($S$22=7,GHR_NS_RecidRates!AR14, IF($S$22=6,GHR_NS_RecidRates!AS14, IF($S$22=5,GHR_NS_RecidRates!AT14, IF($S$22=4,GHR_NS_RecidRates!AU14, IF($S$22=3,GHR_NS_RecidRates!AV14, IF($S$22=2,GHR_NS_RecidRates!AW14, IF($S$22=1,GHR_NS_RecidRates!AX14, ""))))))))))))))))))))), "")) ->  | P17: -0.135 | Q17: Year offense free with nonsexual reoffense
H18: 13 | I18: =IF(ISBLANK('Time Accounting'!$AH$22),"",'Time Accounting'!$AH$22) ->  | J18: =IF($E$7="No", (IF($S$22>=20,GHR_RecidRates!AE15, IF($S$22=19,GHR_RecidRates!AF15, IF($S$22=18,GHR_RecidRates!AG15, IF($S$22=17,GHR_RecidRates!AH15, IF($S$22=16,GHR_RecidRates!AI15, IF($S$22=15,GHR_RecidRates!AJ15, IF($S$22=14,GHR_RecidRates!AK15, IF($S$22=13,GHR_RecidRates!AL15, IF($S$22=12,GHR_RecidRates!AM15, IF($S$22=11,GHR_RecidRates!AN15, IF($S$22=10,GHR_RecidRates!AO15, IF($S$22=9,GHR_RecidRates!AP15, IF($S$22=8,GHR_RecidRates!AQ15, IF($S$22=7,GHR_RecidRates!AR15, IF($S$22=6,GHR_RecidRates!AS15, IF($S$22=5,GHR_RecidRates!AT15, IF($S$22=4,GHR_RecidRates!AU15, IF($S$22=3,GHR_RecidRates!AV15, IF($S$22=2,GHR_RecidRates!AW15, IF($S$22=1,GHR_RecidRates!AX15, ""))))))))))))))))))))), IF(AND($E$7="Yes",$E$9>=$E$3), (IF($S$22>=20,GHR_NS_RecidRates!AE15, IF($S$22=19,GHR_NS_RecidRates!AF15, IF($S$22=18,GHR_NS_RecidRates!AG15, IF($S$22=17,GHR_NS_RecidRates!AH15, IF($S$22=16,GHR_NS_RecidRates!AI15, IF($S$22=15,GHR_NS_RecidRates!AJ15, IF($S$22=14,GHR_NS_RecidRates!AK15, IF($S$22=13,GHR_NS_RecidRates!AL15, IF($S$22=12,GHR_NS_RecidRates!AM15, IF($S$22=11,GHR_NS_RecidRates!AN15, IF($S$22=10,GHR_NS_RecidRates!AO15, IF($S$22=9,GHR_NS_RecidRates!AP15, IF($S$22=8,GHR_NS_RecidRates!AQ15, IF($S$22=7,GHR_NS_RecidRates!AR15, IF($S$22=6,GHR_NS_RecidRates!AS15, IF($S$22=5,GHR_NS_RecidRates!AT15, IF($S$22=4,GHR_NS_RecidRates!AU15, IF($S$22=3,GHR_NS_RecidRates!AV15, IF($S$22=2,GHR_NS_RecidRates!AW15, IF($S$22=1,GHR_NS_RecidRates!AX15, ""))))))))))))))))))))), "")) ->  | P18: 0.44 | Q18: Year of first nonsexual reoffense
H19: 14 | I19: =IF(ISBLANK('Time Accounting'!$AJ$22),"",'Time Accounting'!$AJ$22) ->  | J19: =IF($E$7="No", (IF($S$22>=20,GHR_RecidRates!AE16, IF($S$22=19,GHR_RecidRates!AF16, IF($S$22=18,GHR_RecidRates!AG16, IF($S$22=17,GHR_RecidRates!AH16, IF($S$22=16,GHR_RecidRates!AI16, IF($S$22=15,GHR_RecidRates!AJ16, IF($S$22=14,GHR_RecidRates!AK16, IF($S$22=13,GHR_RecidRates!AL16, IF($S$22=12,GHR_RecidRates!AM16, IF($S$22=11,GHR_RecidRates!AN16, IF($S$22=10,GHR_RecidRates!AO16, IF($S$22=9,GHR_RecidRates!AP16, IF($S$22=8,GHR_RecidRates!AQ16, IF($S$22=7,GHR_RecidRates!AR16, IF($S$22=6,GHR_RecidRates!AS16, IF($S$22=5,GHR_RecidRates!AT16, IF($S$22=4,GHR_RecidRates!AU16, IF($S$22=3,GHR_RecidRates!AV16, IF($S$22=2,GHR_RecidRates!AW16, IF($S$22=1,GHR_RecidRates!AX16, ""))))))))))))))))))))), IF(AND($E$7="Yes",$E$9>=$E$3), (IF($S$22>=20,GHR_NS_RecidRates!AE16, IF($S$22=19,GHR_NS_RecidRates!AF16, IF($S$22=18,GHR_NS_RecidRates!AG16, IF($S$22=17,GHR_NS_RecidRates!AH16, IF($S$22=16,GHR_NS_RecidRates!AI16, IF($S$22=15,GHR_NS_RecidRates!AJ16, IF($S$22=14,GHR_NS_RecidRates!AK16, IF($S$22=13,GHR_NS_RecidRates!AL16, IF($S$22=12,GHR_NS_RecidRates!AM16, IF($S$22=11,GHR_NS_RecidRates!AN16, IF($S$22=10,GHR_NS_RecidRates!AO16, IF($S$22=9,GHR_NS_RecidRates!AP16, IF($S$22=8,GHR_NS_RecidRates!AQ16, IF($S$22=7,GHR_NS_RecidRates!AR16, IF($S$22=6,GHR_NS_RecidRates!AS16, IF($S$22=5,GHR_NS_RecidRates!AT16, IF($S$22=4,GHR_NS_RecidRates!AU16, IF($S$22=3,GHR_NS_RecidRates!AV16, IF($S$22=2,GHR_NS_RecidRates!AW16, IF($S$22=1,GHR_NS_RecidRates!AX16, ""))))))))))))))))))))), "")) -> 
E20: Instructions Always start by resetting the workbook. Only enter data in yellow highlighted cells. | H20: 15 | I20: =IF(ISBLANK('Time Accounting'!$AL$22),"",'Time Accounting'!$AL$22) ->  | J20: =IF($E$7="No", (IF($S$22>=20,GHR_RecidRates!AE17, IF($S$22=19,GHR_RecidRates!AF17, IF($S$22=18,GHR_RecidRates!AG17, IF($S$22=17,GHR_RecidRates!AH17, IF($S$22=16,GHR_RecidRates!AI17, IF($S$22=15,GHR_RecidRates!AJ17, IF($S$22=14,GHR_RecidRates!AK17, IF($S$22=13,GHR_RecidRates!AL17, IF($S$22=12,GHR_RecidRates!AM17, IF($S$22=11,GHR_RecidRates!AN17, IF($S$22=10,GHR_RecidRates!AO17, IF($S$22=9,GHR_RecidRates!AP17, IF($S$22=8,GHR_RecidRates!AQ17, IF($S$22=7,GHR_RecidRates!AR17, IF($S$22=6,GHR_RecidRates!AS17, IF($S$22=5,GHR_RecidRates!AT17, IF($S$22=4,GHR_RecidRates!AU17, IF($S$22=3,GHR_RecidRates!AV17, IF($S$22=2,GHR_RecidRates!AW17, IF($S$22=1,GHR_RecidRates!AX17, ""))))))))))))))))))))), IF(AND($E$7="Yes",$E$9>=$E$3), (IF($S$22>=20,GHR_NS_RecidRates!AE17, IF($S$22=19,GHR_NS_RecidRates!AF17, IF($S$22=18,GHR_NS_RecidRates!AG17, IF($S$22=17,GHR_NS_RecidRates!AH17, IF($S$22=16,GHR_NS_RecidRates!AI17, IF($S$22=15,GHR_NS_RecidRates!AJ17, IF($S$22=14,GHR_NS_RecidRates!AK17, IF($S$22=13,GHR_NS_RecidRates!AL17, IF($S$22=12,GHR_NS_RecidRates!AM17, IF($S$22=11,GHR_NS_RecidRates!AN17, IF($S$22=10,GHR_NS_RecidRates!AO17, IF($S$22=9,GHR_NS_RecidRates!AP17, IF($S$22=8,GHR_NS_RecidRates!AQ17, IF($S$22=7,GHR_NS_RecidRates!AR17, IF($S$22=6,GHR_NS_RecidRates!AS17, IF($S$22=5,GHR_NS_RecidRates!AT17, IF($S$22=4,GHR_NS_RecidRates!AU17, IF($S$22=3,GHR_NS_RecidRates!AV17, IF($S$22=2,GHR_NS_RecidRates!AW17, IF($S$22=1,GHR_NS_RecidRates!AX17, ""))))))))))))))))))))), "")) -> 
H21: 16 | I21: =IF(ISBLANK('Time Accounting'!$AN$22),"",'Time Accounting'!$AN$22) ->  | J21: =IF($E$7="No", (IF($S$22>=20,GHR_RecidRates!AE18, IF($S$22=19,GHR_RecidRates!AF18, IF($S$22=18,GHR_RecidRates!AG18, IF($S$22=17,GHR_RecidRates!AH18, IF($S$22=16,GHR_RecidRates!AI18, IF($S$22=15,GHR_RecidRates!AJ18, IF($S$22=14,GHR_RecidRates!AK18, IF($S$22=13,GHR_RecidRates!AL18, IF($S$22=12,GHR_RecidRates!AM18, IF($S$22=11,GHR_RecidRates!AN18, IF($S$22=10,GHR_RecidRates!AO18, IF($S$22=9,GHR_RecidRates!AP18, IF($S$22=8,GHR_RecidRates!AQ18, IF($S$22=7,GHR_RecidRates!AR18, IF($S$22=6,GHR_RecidRates!AS18, IF($S$22=5,GHR_RecidRates!AT18, IF($S$22=4,GHR_RecidRates!AU18, IF($S$22=3,GHR_RecidRates!AV18, IF($S$22=2,GHR_RecidRates!AW18, IF($S$22=1,GHR_RecidRates!AX18, ""))))))))))))))))))))), IF(AND($E$7="Yes",$E$9>=$E$3), (IF($S$22>=20,GHR_NS_RecidRates!AE18, IF($S$22=19,GHR_NS_RecidRates!AF18, IF($S$22=18,GHR_NS_RecidRates!AG18, IF($S$22=17,GHR_NS_RecidRates!AH18, IF($S$22=16,GHR_NS_RecidRates!AI18, IF($S$22=15,GHR_NS_RecidRates!AJ18, IF($S$22=14,GHR_NS_RecidRates!AK18, IF($S$22=13,GHR_NS_RecidRates!AL18, IF($S$22=12,GHR_NS_RecidRates!AM18, IF($S$22=11,GHR_NS_RecidRates!AN18, IF($S$22=10,GHR_NS_RecidRates!AO18, IF($S$22=9,GHR_NS_RecidRates!AP18, IF($S$22=8,GHR_NS_RecidRates!AQ18, IF($S$22=7,GHR_NS_RecidRates!AR18, IF($S$22=6,GHR_NS_RecidRates!AS18, IF($S$22=5,GHR_NS_RecidRates!AT18, IF($S$22=4,GHR_NS_RecidRates!AU18, IF($S$22=3,GHR_NS_RecidRates!AV18, IF($S$22=2,GHR_NS_RecidRates!AW18, IF($S$22=1,GHR_NS_RecidRates!AX18, ""))))))))))))))))))))), "")) -> 
H22: 17 | I22: =IF(ISBLANK('Time Accounting'!$AP$22),"",'Time Accounting'!$AP$22) ->  | J22: =IF($E$7="No", (IF($S$22>=20,GHR_RecidRates!AE19, IF($S$22=19,GHR_RecidRates!AF19, IF($S$22=18,GHR_RecidRates!AG19, IF($S$22=17,GHR_RecidRates!AH19, IF($S$22=16,GHR_RecidRates!AI19, IF($S$22=15,GHR_RecidRates!AJ19, IF($S$22=14,GHR_RecidRates!AK19, IF($S$22=13,GHR_RecidRates!AL19, IF($S$22=12,GHR_RecidRates!AM19, IF($S$22=11,GHR_RecidRates!AN19, IF($S$22=10,GHR_RecidRates!AO19, IF($S$22=9,GHR_RecidRates!AP19, IF($S$22=8,GHR_RecidRates!AQ19, IF($S$22=7,GHR_RecidRates!AR19, IF($S$22=6,GHR_RecidRates!AS19, IF($S$22=5,GHR_RecidRates!AT19, IF($S$22=4,GHR_RecidRates!AU19, IF($S$22=3,GHR_RecidRates!AV19, IF($S$22=2,GHR_RecidRates!AW19, IF($S$22=1,GHR_RecidRates!AX19, ""))))))))))))))))))))), IF(AND($E$7="Yes",$E$9>=$E$3), (IF($S$22>=20,GHR_NS_RecidRates!AE19, IF($S$22=19,GHR_NS_RecidRates!AF19, IF($S$22=18,GHR_NS_RecidRates!AG19, IF($S$22=17,GHR_NS_RecidRates!AH19, IF($S$22=16,GHR_NS_RecidRates!AI19, IF($S$22=15,GHR_NS_RecidRates!AJ19, IF($S$22=14,GHR_NS_RecidRates!AK19, IF($S$22=13,GHR_NS_RecidRates!AL19, IF($S$22=12,GHR_NS_RecidRates!AM19, IF($S$22=11,GHR_NS_RecidRates!AN19, IF($S$22=10,GHR_NS_RecidRates!AO19, IF($S$22=9,GHR_NS_RecidRates!AP19, IF($S$22=8,GHR_NS_RecidRates!AQ19, IF($S$22=7,GHR_NS_RecidRates!AR19, IF($S$22=6,GHR_NS_RecidRates!AS19, IF($S$22=5,GHR_NS_RecidRates!AT19, IF($S$22=4,GHR_NS_RecidRates!AU19, IF($S$22=3,GHR_NS_RecidRates!AV19, IF($S$22=2,GHR_NS_RecidRates!AW19, IF($S$22=1,GHR_NS_RecidRates!AX19, ""))))))))))))))))))))), "")) ->  | P22: Extrapolation of Lifetime Risk: Years | S22: 20
H23: 18 | I23: =IF(ISBLANK('Time Accounting'!$AR$22),"",'Time Accounting'!$AR$22) ->  | J23: =IF($E$7="No", (IF($S$22>=20,GHR_RecidRates!AE20, IF($S$22=19,GHR_RecidRates!AF20, IF($S$22=18,GHR_RecidRates!AG20, IF($S$22=17,GHR_RecidRates!AH20, IF($S$22=16,GHR_RecidRates!AI20, IF($S$22=15,GHR_RecidRates!AJ20, IF($S$22=14,GHR_RecidRates!AK20, IF($S$22=13,GHR_RecidRates!AL20, IF($S$22=12,GHR_RecidRates!AM20, IF($S$22=11,GHR_RecidRates!AN20, IF($S$22=10,GHR_RecidRates!AO20, IF($S$22=9,GHR_RecidRates!AP20, IF($S$22=8,GHR_RecidRates!AQ20, IF($S$22=7,GHR_RecidRates!AR20, IF($S$22=6,GHR_RecidRates!AS20, IF($S$22=5,GHR_RecidRates!AT20, IF($S$22=4,GHR_RecidRates!AU20, IF($S$22=3,GHR_RecidRates!AV20, IF($S$22=2,GHR_RecidRates!AW20, IF($S$22=1,GHR_RecidRates!AX20, ""))))))))))))))))))))), IF(AND($E$7="Yes",$E$9>=$E$3), (IF($S$22>=20,GHR_NS_RecidRates!AE20, IF($S$22=19,GHR_NS_RecidRates!AF20, IF($S$22=18,GHR_NS_RecidRates!AG20, IF($S$22=17,GHR_NS_RecidRates!AH20, IF($S$22=16,GHR_NS_RecidRates!AI20, IF($S$22=15,GHR_NS_RecidRates!AJ20, IF($S$22=14,GHR_NS_RecidRates!AK20, IF($S$22=13,GHR_NS_RecidRates!AL20, IF($S$22=12,GHR_NS_RecidRates!AM20, IF($S$22=11,GHR_NS_RecidRates!AN20, IF($S$22=10,GHR_NS_RecidRates!AO20, IF($S$22=9,GHR_NS_RecidRates!AP20, IF($S$22=8,GHR_NS_RecidRates!AQ20, IF($S$22=7,GHR_NS_RecidRates!AR20, IF($S$22=6,GHR_NS_RecidRates!AS20, IF($S$22=5,GHR_NS_RecidRates!AT20, IF($S$22=4,GHR_NS_RecidRates!AU20, IF($S$22=3,GHR_NS_RecidRates!AV20, IF($S$22=2,GHR_NS_RecidRates!AW20, IF($S$22=1,GHR_NS_RecidRates!AX20, ""))))))))))))))))))))), "")) -> 
H24: 19 | I24: =IF(ISBLANK('Time Accounting'!$AT$22),"",'Time Accounting'!$AT$22) ->  | J24: =IF($E$7="No", (IF($S$22>=20,GHR_RecidRates!AE21, IF($S$22=19,GHR_RecidRates!AF21, IF($S$22=18,GHR_RecidRates!AG21, IF($S$22=17,GHR_RecidRates!AH21, IF($S$22=16,GHR_RecidRates!AI21, IF($S$22=15,GHR_RecidRates!AJ21, IF($S$22=14,GHR_RecidRates!AK21, IF($S$22=13,GHR_RecidRates!AL21, IF($S$22=12,GHR_RecidRates!AM21, IF($S$22=11,GHR_RecidRates!AN21, IF($S$22=10,GHR_RecidRates!AO21, IF($S$22=9,GHR_RecidRates!AP21, IF($S$22=8,GHR_RecidRates!AQ21, IF($S$22=7,GHR_RecidRates!AR21, IF($S$22=6,GHR_RecidRates!AS21, IF($S$22=5,GHR_RecidRates!AT21, IF($S$22=4,GHR_RecidRates!AU21, IF($S$22=3,GHR_RecidRates!AV21, IF($S$22=2,GHR_RecidRates!AW21, IF($S$22=1,GHR_RecidRates!AX21, ""))))))))))))))))))))), IF(AND($E$7="Yes",$E$9>=$E$3), (IF($S$22>=20,GHR_NS_RecidRates!AE21, IF($S$22=19,GHR_NS_RecidRates!AF21, IF($S$22=18,GHR_NS_RecidRates!AG21, IF($S$22=17,GHR_NS_RecidRates!AH21, IF($S$22=16,GHR_NS_RecidRates!AI21, IF($S$22=15,GHR_NS_RecidRates!AJ21, IF($S$22=14,GHR_NS_RecidRates!AK21, IF($S$22=13,GHR_NS_RecidRates!AL21, IF($S$22=12,GHR_NS_RecidRates!AM21, IF($S$22=11,GHR_NS_RecidRates!AN21, IF($S$22=10,GHR_NS_RecidRates!AO21, IF($S$22=9,GHR_NS_RecidRates!AP21, IF($S$22=8,GHR_NS_RecidRates!AQ21, IF($S$22=7,GHR_NS_RecidRates!AR21, IF($S$22=6,GHR_NS_RecidRates!AS21, IF($S$22=5,GHR_NS_RecidRates!AT21, IF($S$22=4,GHR_NS_RecidRates!AU21, IF($S$22=3,GHR_NS_RecidRates!AV21, IF($S$22=2,GHR_NS_RecidRates!AW21, IF($S$22=1,GHR_NS_RecidRates!AX21, ""))))))))))))))))))))), "")) -> 
H25: 20 | I25: =IF(ISBLANK('Time Accounting'!$AV$22),"",'Time Accounting'!$AV$22) ->  | J25: =IF($E$7="No", (IF($S$22>=20,GHR_RecidRates!AE22, IF($S$22=19,GHR_RecidRates!AF22, IF($S$22=18,GHR_RecidRates!AG22, IF($S$22=17,GHR_RecidRates!AH22, IF($S$22=16,GHR_RecidRates!AI22, IF($S$22=15,GHR_RecidRates!AJ22, IF($S$22=14,GHR_RecidRates!AK22, IF($S$22=13,GHR_RecidRates!AL22, IF($S$22=12,GHR_RecidRates!AM22, IF($S$22=11,GHR_RecidRates!AN22, IF($S$22=10,GHR_RecidRates!AO22, IF($S$22=9,GHR_RecidRates!AP22, IF($S$22=8,GHR_RecidRates!AQ22, IF($S$22=7,GHR_RecidRates!AR22, IF($S$22=6,GHR_RecidRates!AS22, IF($S$22=5,GHR_RecidRates!AT22, IF($S$22=4,GHR_RecidRates!AU22, IF($S$22=3,GHR_RecidRates!AV22, IF($S$22=2,GHR_RecidRates!AW22, IF($S$22=1,GHR_RecidRates!AX22, ""))))))))))))))))))))), IF(AND($E$7="Yes",$E$9>=$E$3), (IF($S$22>=20,GHR_NS_RecidRates!AE22, IF($S$22=19,GHR_NS_RecidRates!AF22, IF($S$22=18,GHR_NS_RecidRates!AG22, IF($S$22=17,GHR_NS_RecidRates!AH22, IF($S$22=16,GHR_NS_RecidRates!AI22, IF($S$22=15,GHR_NS_RecidRates!AJ22, IF($S$22=14,GHR_NS_RecidRates!AK22, IF($S$22=13,GHR_NS_RecidRates!AL22, IF($S$22=12,GHR_NS_RecidRates!AM22, IF($S$22=11,GHR_NS_RecidRates!AN22, IF($S$22=10,GHR_NS_RecidRates!AO22, IF($S$22=9,GHR_NS_RecidRates!AP22, IF($S$22=8,GHR_NS_RecidRates!AQ22, IF($S$22=7,GHR_NS_RecidRates!AR22, IF($S$22=6,GHR_NS_RecidRates!AS22, IF($S$22=5,GHR_NS_RecidRates!AT22, IF($S$22=4,GHR_NS_RecidRates!AU22, IF($S$22=3,GHR_NS_RecidRates!AV22, IF($S$22=2,GHR_NS_RecidRates!AW22, IF($S$22=1,GHR_NS_RecidRates!AX22, ""))))))))))))))))))))), "")) -> 
D27: Today | H27: =TODAY() -> 2024-05-28 | J27: =IF($H$27>=I25, "0", IF(AND($H$27<I25,$H$27>=I24), J24-((J24-J25)*((365.25-(I25-$H$27))/365.25)), IF(AND($H$27<I24,$H$27>=I23), J23-((J23-J24)*((365.25-(I25-$H$27))/365.25)), IF(AND($H$27<I23,$H$27>=I22), J22-((J22-J23)*((365.25-(I23-$H$27))/365.25)), IF(AND($H$27<I22,$H$27>=I21), J21-((J21-J22)*((365.25-(I22-$H$27))/365.25)), IF(AND($H$27<I21,$H$27>=I20), J20-((J20-J21)*((365.25-(I21-$H$27))/365.25)), IF(AND($H$27<I20,$H$27>=I19), J19-((J19-J20)*((365.25-(I20-$H$27))/365.25)), IF(AND($H$27<I19,$H$27>=I18), J18-((J18-J19)*((365.25-(I19-$H$27))/365.25)), IF(AND($H$27<I18,$H$27>=I17), J17-((J17-J18)*((365.25-(I18-$H$27))/365.25)), IF(AND($H$27<I17,$H$27>=I16), J16-((J16-J17)*((365.25-(I17-$H$27))/365.25)), IF(AND($H$27<I16,$H$27>=I15), J15-((J15-J16)*((365.25-(I16-$H$27))/365.25)), IF(AND($H$27<I15,$H$27>=I14), J14-((J14-J15)*((365.25-(I15-$H$27))/365.25)), IF(AND($H$27<I14,$H$27>=I13), J13-((J13-J14)*((365.25-(I14-$H$27))/365.25)), IF(AND($H$27<I13,$H$27>=I12), J12-((J12-J13)*((365.25-(I13-$H$27))/365.25)), IF(AND($H$27<I12,$H$27>=I11), J11-((J11-J12)*((365.25-(I12-$H$27))/365.25)), IF(AND($H$27<I11,$H$27>=I10), J10-((J10-J11)*((365.25-(I11-$H$27))/365.25)), IF(AND($H$27<I10,$H$27>=I9), J9-((J9-J10)*((365.25-(I10-$H$27))/365.25)), IF(AND($H$27<I9,$H$27>=I8), J8-((J8-J9)*((365.25-(I9-$H$27))/365.25)), IF(AND($H$27<I8,$H$27>=I7), J7-((J7-J8)*((365.25-(I8-$H$27))/365.25)), IF(AND($H$27<I7,$H$27>=I6), J6-((J6-J7)*((365.25-(I7-$H$27))/365.25)), IF(AND($H$27<I6,$H$27>=I5), IF($E$7="No", J5-((J5-J6)*((365.25-(I6-$H$27))/365.25)), GHR_NS_RecidRates!AE2-((GHR_NS_RecidRates!AE2-J6)*((365.25-(I6-$H$27))/365.25)) ),J5))))))))))))))))))))) -> 

Sheet Get_HR
B2: Recidivism risk to model: | C2: =Calculator!B5 -> 0
B3: Follow-up year: | C3: =Calculator!B6 -> 0
B6: Hazard ratio: | C6: =IF(ISNUMBER(E8),E8,E6) -> 0.1174733469 | E6: 0.01
B8: Error (Desired - Model Prediction): | C8: =MAX(GHR_RecidRates!I2:I21) -> 0 | D8: % | E8: =IF(ABS(C8)<0.0001,C6, IF(C8<=0.0001,C6*0.999, IF(C8>=-0.0001,C6*1.001, ""))) -> 0.1174733469

Sheet Time Accounting
A1: Enter Community | B1: Leave Community | C1: Days in Community | D1: Cummulative Days in Community | E1: Years accounted for | F1: Cummulative Days Accounted for | G1: Remaining Days to account for | J1: EndYear01 | K1: Days Remaining | L1: EndYear02 | M1: Days Remaining | N1: EndYear03 | O1: Days Remaining | P1: EndYear04 | Q1: Days Remaining | R1: EndYear05 | S1: Days Remaining | T1: EndYear06 | U1: Days Remaining | V1: EndYear07 | W1: Days Remaining | X1: EndYear08 | Y1: Days Remaining | Z1: EndYear09 | AA1: Days Remaining | AB1: EndYear10 | AC1: Days Remaining | AD1: EndYear11 | AE1: Days Remaining | AF1: EndYear12 | AG1: Days Remaining | AH1: EndYear13 | AI1: Days Remaining | AJ1: EndYear14 | AK1: Days Remaining | AL1: EndYear15 | AM1: Days Remaining | AN1: EndYear16 | AO1: Days Remaining | AP1: EndYear17 | AQ1: Days Remaining | AR1: EndYear18 | AS1: Days Remaining | AT1: EndYear19 | AU1: Days Remaining | AV1: EndYear20
A2: =Calculator!E3 -> 00:00:00 | B2: =IF(A2>=TODAY(),A2+365.25*21, IF(Calculator!E11="No",TODAY(), IF(Calculator!E13>=1,Calculator!M4,""))) ->  | C2: =DATEDIF(A2,B2,"D") ->  | D2: =C2 ->  | E2: =IF(A2="","",QUOTIENT(D2,365.25)) ->  | F2: =IF(A2="","", 365.25*E2) ->  | G2: =IF(A2="","",D2-F2) ->  | J2: =IF(D2<$A$18,"",A2+$A$18) ->  | K2: =IF(D2<$A$18,"",D2-$A$18) ->  | L2: =IF(OR(K2<$A$18,K2=""),"",J2+$A$18) ->  | M2: =IF(OR(K2<$A$18,K2=""),"",K2-$A$18) ->  | N2: =IF(OR(M2<$A$18,M2=""),"",L2+$A$18) ->  | O2: =IF(OR(M2<$A$18,M2=""),"",M2-$A$18) ->  | P2: =IF(OR(O2<$A$18,O2=""),"",N2+$A$18) ->  | Q2: =IF(OR(O2<$A$18,O2=""),"",O2-$A$18) ->  | R2: =IF(OR(Q2<$A$18,Q2=""),"",P2+$A$18) ->  | S2: =IF(OR(Q2<$A$18,Q2=""),"",Q2-$A$18) ->  | T2: =IF(OR(S2<$A$18,S2=""),"",R2+$A$18) ->  | U2: =IF(OR(S2<$A$18,S2=""),"",S2-$A$18) ->  | V2: =IF(OR(U2<$A$18,U2=""),"",T2+$A$18) ->  | W2: =IF(OR(U2<$A$18,U2=""),"",U2-$A$18) ->  | X2: =IF(OR(W2<$A$18,W2=""),"",V2+$A$18) ->  | Y2: =IF(OR(W2<$A$18,W2=""),"",W2-$A$18) ->  | Z2: =IF(OR(Y2<$A$18,Y2=""),"",X2+$A$18) ->  | AA2: =IF(OR(Y2<$A$18,Y2=""),"",Y2-$A$18) ->  | AB2: =IF(OR(AA2<$A$18,AA2=""),"",Z2+$A$18) ->  | AC2: =IF(OR(AA2<$A$18,AA2=""),"",AA2-$A$18) ->  | AD2: =IF(OR(AC2<$A$18,AC2=""),"",AB2+$A$18) ->  | AE2: =IF(OR(AC2<$A$18,AC2=""),"",AC2-$A$18) ->  | AF2: =IF(OR(AE2<$A$18,AE2=""),"",AD2+$A$18) ->  | AG2: =IF(OR(AE2<$A$18,AE2=""),"",AE2-$A$18) ->  | AH2: =IF(OR(AG2<$A$18,AG2=""),"",AF2+$A$18) ->  | AI2: =IF(OR(AG2<$A$18,AG2=""),"",AG2-$A$18) ->  | AJ2: =IF(OR(AI2<$A$18,AI2=""),"",AH2+$A$18) ->  | AK2: =IF(OR(AI2<$A$18,AI2=""),"",AI2-$A$18) ->  | AL2: =IF(OR(AK2<$A$18,AK2=""),"",AJ2+$A$18) ->  | AM2: =IF(OR(AK2<$A$18,AK2=""),"",AK2-$A$18) ->  | AN2: =IF(OR(AM2<$A$18,AM2=""),"",AL2+$A$18) ->  | AO2: =IF(OR(AM2<$A$18,AM2=""),"",AM2-$A$18) ->  | AP2: =IF(OR(AO2<$A$18,AO2=""),"",AN2+$A$18) ->  | AQ2: =IF(OR(AO2<$A$18,AO2=""),"",AO2-$A$18) ->  | AR2: =IF(OR(AQ2<$A$18,AQ2=""),"",AP2+$A$18) ->  | AS2: =IF(OR(AQ2<$A$18,AQ2=""),"",AQ2-$A$18) ->  | AT2: =IF(OR(AS2<$A$18,AS2=""),"",AR2+$A$18) ->  | AU2: =IF(OR(AS2<$A$18,AS2=""),"",AS2-$A$18) ->  | AV2: =IF(OR(AU2<$A$18,AU2=""),"",AT2+$A$18) ->  | AW2: =IF(OR(AU2<$A$18,AU2=""),"",AU2-$A$18) -> 
A3: =IF(Calculator!$E$13>=1,B2+Calculator!N4,"") ->  | B3: =IF(B2>=TODAY(),"",IF(Calculator!$E$13>=2,Calculator!M5,IF(A3>TODAY(),A3+365.25*21,TODAY()))) ->  | C3: =IF(A3="","",DATEDIF(A3,B3,"D")) ->  | D3: =IF(A3="","",SUM(C$2:C3)) ->  | E3: =IF(A3="",E2,QUOTIENT(D3,365.25)) ->  | F3: =IF(A3="","", 365.25*E3) ->  | G3: =IF(A3="","",D3-F3) ->  | J3: =IF(OR(MAX(K$2:K2)>0,$E3<1),"", IF(D3>=$A$18,A3+$A$18-G2,"" )) ->  | K3: =IF(OR(MAX(K2)>0,AND(K2>0,D3<$A$18)),"",D3-$A$18) ->  | L3: =IF($E3<L$13,"", IF(MAX(M$2:M2)>0,"", IF(AND($D3>=(L$13*$A$18),K3=""),$A3+$A$18-$G2,J3+$A$18 ))) ->  | M3: =IF(L3="","", IF($D3>=L$13*$A$18,$D3-L$13*$A$18,"")) ->  | N3: =IF($E3<N$13,"", IF(MAX(O$2:O2)>0,"", IF(AND($D3>=(N$13*$A$18),M3=""),$A3+$A$18-$G2,L3+$A$18 ))) ->  | O3: =IF(N3="","", IF($D3>=N$13*$A$18,$D3-N$13*$A$18,"")) ->  | P3: =IF($E3<P$13,"", IF(MAX(Q$2:Q2)>0,"", IF(AND($D3>=(P$13*$A$18),O3=""),$A3+$A$18-$G2,N3+$A$18 ))) ->  | Q3: =IF(P3="","", IF($D3>=P$13*$A$18,$D3-P$13*$A$18,"")) ->  | R3: =IF($E3<R$13,"", IF(MAX(S$2:S2)>0,"", IF(AND($D3>=(R$13*$A$18),Q3=""),$A3+$A$18-$G2,P3+$A$18 ))) ->  | S3: =IF(R3="","", IF($D3>=R$13*$A$18,$D3-R$13*$A$18,"")) ->  | T3: =IF($E3<T$13,"", IF(MAX(U$2:U2)>0,"", IF(AND($D3>=(T$13*$A$18),S3=""),$A3+$A$18-$G2,R3+$A$18 ))) ->  | U3: =IF(T3="","", IF($D3>=T$13*$A$18,$D3-T$13*$A$18,"")) ->  | V3: =IF($E3<V$13,"", IF(MAX(W$2:W2)>0,"", IF(AND($D3>=(V$13*$A$18),U3=""),$A3+$A$18-$G2,T3+$A$18 ))) ->  | W3: =IF(V3="","", IF($D3>=V$13*$A$18,$D3-V$13*$A$18,"")) ->  | X3: =IF($E3<X$13,"", IF(MAX(Y$2:Y2)>0,"", IF(AND($D3>=(X$13*$A$18),W3=""),$A3+$A$18-$G2,V3+$A$18 ))) ->  | Y3: =IF(X3="","", IF($D3>=X$13*$A$18,$D3-X$13*$A$18,"")) ->  | Z3: =IF($E3<Z$13,"", IF(MAX(AA$2:AA2)>0,"", IF(AND($D3>=(Z$13*$A$18),Y3=""),$A3+$A$18-$G2,X3+$A$18 ))) ->  | AA3: =IF(Z3="","", IF($D3>=Z$13*$A$18,$D3-Z$13*$A$18,"")) ->  | AB3: =IF($E3<AB$13,"", IF(MAX(AC$2:AC2)>0,"", IF(AND($D3>=(AB$13*$A$18),AA3=""),$A3+$A$18-$G2,Z3+$A$18 ))) ->  | AC3: =IF(AB3="","", IF($D3>=AB$13*$A$18,$D3-AB$13*$A$18,"")) ->  | AD3: =IF($E3<AD$13,"", IF(MAX(AE$2:AE2)>0,"", IF(AND($D3>=(AD$13*$A$18),AC3=""),$A3+$A$18-$G2,AB3+$A$18 ))) ->  | AE3: =IF(AD3="","", IF($D3>=AD$13*$A$18,$D3-AD$13*$A$18,"")) ->  | AF3: =IF($E3<AF$13,"", IF(MAX(AG$2:AG2)>0,"", IF(AND($D3>=(AF$13*$A$18),AE3=""),$A3+$A$18-$G2,AD3+$A$18 ))) ->  | AG3: =IF(AF3="","", IF($D3>=AF$13*$A$18,$D3-AF$13*$A$18,"")) ->  | AH3: =IF($E3<AH$13,"", IF(MAX(AI$2:AI2)>0,"", IF(AND($D3>=(AH$13*$A$18),AG3=""),$A3+$A$18-$G2,AF3+$A$18 ))) ->  | AI3: =IF(AH3="","", IF($D3>=AH$13*$A$18,$D3-AH$13*$A$18,"")) ->  | AJ3: =IF($E3<AJ$13,"", IF(MAX(AK$2:AK2)>0,"", IF(AND($D3>=(AJ$13*$A$18),AI3=""),$A3+$A$18-$G2,AH3+$A$18 ))) ->  | AK3: =IF(AJ3="","", IF($D3>=AJ$13*$A$18,$D3-AJ$13*$A$18,"")) ->  | AL3: =IF($E3<AL$13,"", IF(MAX(AM$2:AM2)>0,"", IF(AND($D3>=(AL$13*$A$18),AK3=""),$A3+$A$18-$G2,AJ3+$A$18 ))) ->  | AM3: =IF(AL3="","", IF($D3>=AL$13*$A$18,$D3-AL$13*$A$18,"")) ->  | AN3: =IF($E3<AN$13,"", IF(MAX(AO$2:AO2)>0,"", IF(AND($D3>=(AN$13*$A$18),AM3=""),$A3+$A$18-$G2,AL3+$A$18 ))) ->  | AO3: =IF(AN3="","", IF($D3>=AN$13*$A$18,$D3-AN$13*$A$18,"")) ->  | AP3: =IF($E3<AP$13,"", IF(MAX(AQ$2:AQ2)>0,"", IF(AND($D3>=(AP$13*$A$18),AO3=""),$A3+$A$18-$G2,AN3+$A$18 ))) ->  | AQ3: =IF(AP3="","", IF($D3>=AP$13*$A$18,$D3-AP$13*$A$18,"")) ->  | AR3: =IF($E3<AR$13,"", IF(MAX(AS$2:AS2)>0,"", IF(AND($D3>=(AR$13*$A$18),AQ3=""),$A3+$A$18-$G2,AP3+$A$18 ))) ->  | AS3: =IF(AR3="","", IF($D3>=AR$13*$A$18,$D3-AR$13*$A$18,"")) ->  | AT3: =IF($E3<AT$13,"", IF(MAX(AU$2:AU2)>0,"", IF(AND($D3>=(AT$13*$A$18),AS3=""),$A3+$A$18-$G2,AR3+$A$18 ))) ->  | AU3: =IF(AT3="","", IF($D3>=AT$13*$A$18,$D3-AT$13*$A$18,"")) ->  | AV3: =IF($E3<AV$13,"", IF(MAX(AW$2:AW2)>0,"", IF(AND($D3>=(AV$13*$A$18),AU3=""),$A3+$A$18-$G2,AT3+$A$18 ))) ->  | AW3: =IF(AV3="","", IF($D3>=AV$13*$A$18,$D3-AV$13*$A$18,"")) -> 
A4: =IF(Calculator!$E$13>=2,B3+Calculator!N5,"") ->  | B4: =IF(B3>=TODAY(),"",IF(Calculator!$E$13>=3,Calculator!M6,IF(A4>TODAY(),A4+365.25*21,TODAY()))) ->  | C4: =IF(A4="","",DATEDIF(A4,B4,"D")) ->  | D4: =IF(A4="","",SUM(C$2:C4)) ->  | E4: =IF(A4="",E3,QUOTIENT(D4,365.25)) ->  | J4: =IF(OR(MAX(K$2:K3)>0,E4<1),"", IF(D4>=$A$18,A4+$A$18-G3,"" )) ->  | K4: =IF(OR(MAX(K$2:K3)>0,AND(K3>0,D4<$A$18)),"",IF(AND(K3>0,D4=""),G$13,D4-$A$18)) ->  | L4: =IF($E4<L$13,"", IF(MAX(M$2:M3)>0,"", IF(AND($D4>=(L$13*$A$18),K4=""),$A4+$A$18-$G3,J4+$A$18 ))) ->  | N4: =IF($E4<N$13,"", IF(MAX(O$2:O3)>0,"", IF(AND($D4>=(N$13*$A$18),M4=""),$A4+$A$18-$G3,L4+$A$18 ))) ->  | P4: =IF($E4<P$13,"", IF(MAX(Q$2:Q3)>0,"", IF(AND($D4>=(P$13*$A$18),O4=""),$A4+$A$18-$G3,N4+$A$18 ))) ->  | R4: =IF($E4<R$13,"", IF(MAX(S$2:S3)>0,"", IF(AND($D4>=(R$13*$A$18),Q4=""),$A4+$A$18-$G3,P4+$A$18 ))) ->  | T4: =IF($E4<T$13,"", IF(MAX(U$2:U3)>0,"", IF(AND($D4>=(T$13*$A$18),S4=""),$A4+$A$18-$G3,R4+$A$18 ))) ->  | V4: =IF($E4<V$13,"", IF(MAX(W$2:W3)>0,"", IF(AND($D4>=(V$13*$A$18),U4=""),$A4+$A$18-$G3,T4+$A$18 ))) ->  | X4: =IF($E4<X$13,"", IF(MAX(Y$2:Y3)>0,"", IF(AND($D4>=(X$13*$A$18),W4=""),$A4+$A$18-$G3,V4+$A$18 ))) ->  | Z4: =IF($E4<Z$13,"", IF(MAX(AA$2:AA3)>0,"", IF(AND($D4>=(Z$13*$A$18),Y4=""),$A4+$A$18-$G3,X4+$A$18 ))) ->  | AB4: =IF($E4<AB$13,"", IF(MAX(AC$2:AC3)>0,"", IF(AND($D4>=(AB$13*$A$18),AA4=""),$A4+$A$18-$G3,Z4+$A$18 ))) ->  | AD4: =IF($E4<AD$13,"", IF(MAX(AE$2:AE3)>0,"", IF(AND($D4>=(AD$13*$A$18),AC4=""),$A4+$A$18-$G3,AB4+$A$18 ))) ->  | AF4: =IF($E4<AF$13,"", IF(MAX(AG$2:AG3)>0,"", IF(AND($D4>=(AF$13*$A$18),AE4=""),$A4+$A$18-$G3,AD4+$A$18 ))) ->  | AH4: =IF($E4<AH$13,"", IF(MAX(AI$2:AI3)>0,"", IF(AND($D4>=(AH$13*$A$18),AG4=""),$A4+$A$18-$G3,AF4+$A$18 ))) ->  | AJ4: =IF($E4<AJ$13,"", IF(MAX(AK$2:AK3)>0,"", IF(AND($D4>=(AJ$13*$A$18),AI4=""),$A4+$A$18-$G3,AH4+$A$18 ))) ->  | AL4: =IF($E4<AL$13,"", IF(MAX(AM$2:AM3)>0,"", IF(AND($D4>=(AL$13*$A$18),AK4=""),$A4+$A$18-$G3,AJ4+$A$18 ))) ->  | AN4: =IF($E4<AN$13,"", IF(MAX(AO$2:AO3)>0,"", IF(AND($D4>=(AN$13*$A$18),AM4=""),$A4+$A$18-$G3,AL4+$A$18 ))) ->  | AP4: =IF($E4<AP$13,"", IF(MAX(AQ$2:AQ3)>0,"", IF(AND($D4>=(AP$13*$A$18),AO4=""),$A4+$A$18-$G3,AN4+$A$18 ))) ->  | AR4: =IF($E4<AR$13,"", IF(MAX(AS$2:AS3)>0,"", IF(AND($D4>=(AR$13*$A$18),AQ4=""),$A4+$A$18-$G3,AP4+$A$18 ))) ->  | AT4: =IF($E4<AT$13,"", IF(MAX(AU$2:AU3)>0,"", IF(AND($D4>=(AT$13*$A$18),AS4=""),$A4+$A$18-$G3,AR4+$A$18 ))) ->  | AV4: =IF($E4<AV$13,"", IF(MAX(AW$2:AW3)>0,"", IF(AND($D4>=(AV$13*$A$18),AU4=""),$A4+$A$18-$G3,AT4+$A$18 ))) -> 
A5: =IF(Calculator!$E$13>=3,B4+Calculator!N6,"") ->  | B5: =IF(B4>=TODAY(),"",IF(Calculator!$E$13>=4,Calculator!M7,IF(A5>TODAY(),A5+365.25*21,TODAY()))) ->  | D5: =IF(A5="","",SUM(C$2:C5)) ->  | J5: =IF(OR(MAX(K$2:K4)>0,E5<1),"", IF(D5>=$A$18,A5+$A$18-G4,"" )) ->  | K5: =IF(OR(MAX(K$2:K4)>0,AND(K4>0,D5<$A$18)),"",IF(AND(K4>0,D5=""),G$13,D5-$A$18)) ->  | L5: =IF($E5<L$13,"", IF(MAX(M$2:M4)>0,"", IF(AND($D5>=(L$13*$A$18),K5=""),$A5+$A$18-$G4,J5+$A$18 ))) ->  | N5: =IF($E5<N$13,"", IF(MAX(O$2:O4)>0,"", IF(AND($D5>=(N$13*$A$18),M5=""),$A5+$A$18-$G4,L5+$A$18 ))) ->  | P5: =IF($E5<P$13,"", IF(MAX(Q$2:Q4)>0,"", IF(AND($D5>=(P$13*$A$18),O5=""),$A5+$A$18-$G4,N5+$A$18 ))) ->  | R5: =IF($E5<R$13,"", IF(MAX(S$2:S4)>0,"", IF(AND($D5>=(R$13*$A$18),Q5=""),$A5+$A$18-$G4,P5+$A$18 ))) ->  | T5: =IF($E5<T$13,"", IF(MAX(U$2:U4)>0,"", IF(AND($D5>=(T$13*$A$18),S5=""),$A5+$A$18-$G4,R5+$A$18 ))) ->  | V5: =IF($E5<V$13,"", IF(MAX(W$2:W4)>0,"", IF(AND($D5>=(V$13*$A$18),U5=""),$A5+$A$18-$G4,T5+$A$18 ))) ->  | X5: =IF($E5<X$13,"", IF(MAX(Y$2:Y4)>0,"", IF(AND($D5>=(X$13*$A$18),W5=""),$A5+$A$18-$G4,V5+$A$18 ))) ->  | Z5: =IF($E5<Z$13,"", IF(MAX(AA$2:AA4)>0,"", IF(AND($D5>=(Z$13*$A$18),Y5=""),$A5+$A$18-$G4,X5+$A$18 ))) ->  | AB5: =IF($E5<AB$13,"", IF(MAX(AC$2:AC4)>0,"", IF(AND($D5>=(AB$13*$A$18),AA5=""),$A5+$A$18-$G4,Z5+$A$18 ))) ->  | AD5: =IF($E5<AD$13,"", IF(MAX(AE$2:AE4)>0,"", IF(AND($D5>=(AD$13*$A$18),AC5=""),$A5+$A$18-$G4,AB5+$A$18 ))) ->  | AF5: =IF($E5<AF$13,"", IF(MAX(AG$2:AG4)>0,"", IF(AND($D5>=(AF$13*$A$18),AE5=""),$A5+$A$18-$G4,AD5+$A$18 ))) ->  | AH5: =IF($E5<AH$13,"", IF(MAX(AI$2:AI4)>0,"", IF(AND($D5>=(AH$13*$A$18),AG5=""),$A5+$A$18-$G4,AF5+$A$18 ))) ->  | AJ5: =IF($E5<AJ$13,"", IF(MAX(AK$2:AK4)>0,"", IF(AND($D5>=(AJ$13*$A$18),AI5=""),$A5+$A$18-$G4,AH5+$A$18 ))) ->  | AL5: =IF($E5<AL$13,"", IF(MAX(AM$2:AM4)>0,"", IF(AND($D5>=(AL$13*$A$18),AK5=""),$A5+$A$18-$G4,AJ5+$A$18 ))) ->  | AN5: =IF($E5<AN$13,"", IF(MAX(AO$2:AO4)>0,"", IF(AND($D5>=(AN$13*$A$18),AM5=""),$A5+$A$18-$G4,AL5+$A$18 ))) ->  | AP5: =IF($E5<AP$13,"", IF(MAX(AQ$2:AQ4)>0,"", IF(AND($D5>=(AP$13*$A$18),AO5=""),$A5+$A$18-$G4,AN5+$A$18 ))) ->  | AR5: =IF($E5<AR$13,"", IF(MAX(AS$2:AS4)>0,"", IF(AND($D5>=(AR$13*$A$18),AQ5=""),$A5+$A$18-$G4,AP5+$A$18 ))) ->  | AT5: =IF($E5<AT$13,"", IF(MAX(AU$2:AU4)>0,"", IF(AND($D5>=(AT$13*$A$18),AS5=""),$A5+$A$18-$G4,AR5+$A$18 ))) ->  | AV5: =IF($E5<AV$13,"", IF(MAX(AW$2:AW4)>0,"", IF(AND($D5>=(AV$13*$A$18),AU5=""),$A5+$A$18-$G4,AT5+$A$18 ))) -> 
A6: =IF(Calculator!$E$13>=4,B5+Calculator!N7,"") ->  | B6: =IF(B5>=TODAY(),"",IF(Calculator!$E$13>=5,Calculator!M8,IF(A6>TODAY(),A6+365.25*21,TODAY()))) ->  | D6: =IF(A6="","",SUM(C$2:C6)) ->  | J6: =IF(OR(MAX(K$2:K5)>0,E6<1),"", IF(D6>=$A$18,A6+$A$18-G5,"" )) ->  | K6: =IF(OR(MAX(K$2:K5)>0,AND(K5>0,D6<$A$18)),"",IF(AND(K5>0,D6=""),G$13,D6-$A$18)) ->  | L6: =IF($E6<L$13,"", IF(MAX(M$2:M5)>0,"", IF(AND($D6>=(L$13*$A$18),K6=""),$A6+$A$18-$G5,J6+$A$18 ))) ->  | N6: =IF($E6<N$13,"", IF(MAX(O$2:O5)>0,"", IF(AND($D6>=(N$13*$A$18),M6=""),$A6+$A$18-$G5,L6+$A$18 ))) ->  | P6: =IF($E6<P$13,"", IF(MAX(Q$2:Q5)>0,"", IF(AND($D6>=(P$13*$A$18),O6=""),$A6+$A$18-$G5,N6+$A$18 ))) ->  | R6: =IF($E6<R$13,"", IF(MAX(S$2:S5)>0,"", IF(AND($D6>=(R$13*$A$18),Q6=""),$A6+$A$18-$G5,P6+$A$18 ))) ->  | T6: =IF($E6<T$13,"", IF(MAX(U$2:U5)>0,"", IF(AND($D6>=(T$13*$A$18),S6=""),$A6+$A$18-$G5,R6+$A$18 ))) ->  | V6: =IF($E6<V$13,"", IF(MAX(W$2:W5)>0,"", IF(AND($D6>=(V$13*$A$18),U6=""),$A6+$A$18-$G5,T6+$A$18 ))) ->  | X6: =IF($E6<X$13,"", IF(MAX(Y$2:Y5)>0,"", IF(AND($D6>=(X$13*$A$18),W6=""),$A6+$A$18-$G5,V6+$A$18 ))) ->  | Z6: =IF($E6<Z$13,"", IF(MAX(AA$2:AA5)>0,"", IF(AND($D6>=(Z$13*$A$18),Y6=""),$A6+$A$18-$G5,X6+$A$18 ))) ->  | AB6: =IF($E6<AB$13,"", IF(MAX(AC$2:AC5)>0,"", IF(AND($D6>=(AB$13*$A$18),AA6=""),$A6+$A$18-$G5,Z6+$A$18 ))) ->  | AD6: =IF($E6<AD$13,"", IF(MAX(AE$2:AE5)>0,"", IF(AND($D6>=(AD$13*$A$18),AC6=""),$A6+$A$18-$G5,AB6+$A$18 ))) ->  | AF6: =IF($E6<AF$13,"", IF(MAX(AG$2:AG5)>0,"", IF(AND($D6>=(AF$13*$A$18),AE6=""),$A6+$A$18-$G5,AD6+$A$18 ))) ->  | AH6: =IF($E6<AH$13,"", IF(MAX(AI$2:AI5)>0,"", IF(AND($D6>=(AH$13*$A$18),AG6=""),$A6+$A$18-$G5,AF6+$A$18 ))) ->  | AJ6: =IF($E6<AJ$13,"", IF(MAX(AK$2:AK5)>0,"", IF(AND($D6>=(AJ$13*$A$18),AI6=""),$A6+$A$18-$G5,AH6+$A$18 ))) ->  | AL6: =IF($E6<AL$13,"", IF(MAX(AM$2:AM5)>0,"", IF(AND($D6>=(AL$13*$A$18),AK6=""),$A6+$A$18-$G5,AJ6+$A$18 ))) ->  | AN6: =IF($E6<AN$13,"", IF(MAX(AO$2:AO5)>0,"", IF(AND($D6>=(AN$13*$A$18),AM6=""),$A6+$A$18-$G5,AL6+$A$18 ))) ->  | AP6: =IF($E6<AP$13,"", IF(MAX(AQ$2:AQ5)>0,"", IF(AND($D6>=(AP$13*$A$18),AO6=""),$A6+$A$18-$G5,AN6+$A$18 ))) ->  | AR6: =IF($E6<AR$13,"", IF(MAX(AS$2:AS5)>0,"", IF(AND($D6>=(AR$13*$A$18),AQ6=""),$A6+$A$18-$G5,AP6+$A$18 ))) ->  | AT6: =IF($E6<AT$13,"", IF(MAX(AU$2:AU5)>0,"", IF(AND($D6>=(AT$13*$A$18),AS6=""),$A6+$A$18-$G5,AR6+$A$18 ))) ->  | AV6: =IF($E6<AV$13,"", IF(MAX(AW$2:AW5)>0,"", IF(AND($D6>=(AV$13*$A$18),AU6=""),$A6+$A$18-$G5,AT6+$A$18 ))) -> 
A7: =IF(Calculator!$E$13>=5,B6+Calculator!N8,"") ->  | B7: =IF(B6>=TODAY(),"",IF(Calculator!$E$13>=6,Calculator!M9,IF(A7>TODAY(),A7+365.25*21,TODAY()))) ->  | D7: =IF(A7="","",SUM(C$2:C7)) ->  | J7: =IF(OR(MAX(K$2:K6)>0,E7<1),"", IF(D7>=$A$18,A7+$A$18-G6,"" )) ->  | K7: =IF(OR(MAX(K$2:K6)>0,AND(K6>0,D7<$A$18)),"",IF(AND(K6>0,D7=""),G$13,D7-$A$18)) ->  | L7: =IF($E7<L$13,"", IF(MAX(M$2:M6)>0,"", IF(AND($D7>=(L$13*$A$18),K7=""),$A7+$A$18-$G6,J7+$A$18 ))) ->  | N7: =IF($E7<N$13,"", IF(MAX(O$2:O6)>0,"", IF(AND($D7>=(N$13*$A$18),M7=""),$A7+$A$18-$G6,L7+$A$18 ))) ->  | P7: =IF($E7<P$13,"", IF(MAX(Q$2:Q6)>0,"", IF(AND($D7>=(P$13*$A$18),O7=""),$A7+$A$18-$G6,N7+$A$18 ))) ->  | R7: =IF($E7<R$13,"", IF(MAX(S$2:S6)>0,"", IF(AND($D7>=(R$13*$A$18),Q7=""),$A7+$A$18-$G6,P7+$A$18 ))) ->  | T7: =IF($E7<T$13,"", IF(MAX(U$2:U6)>0,"", IF(AND($D7>=(T$13*$A$18),S7=""),$A7+$A$18-$G6,R7+$A$18 ))) ->  | V7: =IF($E7<V$13,"", IF(MAX(W$2:W6)>0,"", IF(AND($D7>=(V$13*$A$18),U7=""),$A7+$A$18-$G6,T7+$A$18 ))) ->  | X7: =IF($E7<X$13,"", IF(MAX(Y$2:Y6)>0,"", IF(AND($D7>=(X$13*$A$18),W7=""),$A7+$A$18-$G6,V7+$A$18 ))) ->  | Z7: =IF($E7<Z$13,"", IF(MAX(AA$2:AA6)>0,"", IF(AND($D7>=(Z$13*$A$18),Y7=""),$A7+$A$18-$G6,X7+$A$18 ))) ->  | AB7: =IF($E7<AB$13,"", IF(MAX(AC$2:AC6)>0,"", IF(AND($D7>=(AB$13*$A$18),AA7=""),$A7+$A$18-$G6,Z7+$A$18 ))) ->  | AD7: =IF($E7<AD$13,"", IF(MAX(AE$2:AE6)>0,"", IF(AND($D7>=(AD$13*$A$18),AC7=""),$A7+$A$18-$G6,AB7+$A$18 ))) ->  | AF7: =IF($E7<AF$13,"", IF(MAX(AG$2:AG6)>0,"", IF(AND($D7>=(AF$13*$A$18),AE7=""),$A7+$A$18-$G6,AD7+$A$18 ))) ->  | AH7: =IF($E7<AH$13,"", IF(MAX(AI$2:AI6)>0,"", IF(AND($D7>=(AH$13*$A$18),AG7=""),$A7+$A$18-$G6,AF7+$A$18 ))) ->  | AJ7: =IF($E7<AJ$13,"", IF(MAX(AK$2:AK6)>0,"", IF(AND($D7>=(AJ$13*$A$18),AI7=""),$A7+$A$18-$G6,AH7+$A$18 ))) ->  | AL7: =IF($E7<AL$13,"", IF(MAX(AM$2:AM6)>0,"", IF(AND($D7>=(AL$13*$A$18),AK7=""),$A7+$A$18-$G6,AJ7+$A$18 ))) ->  | AN7: =IF($E7<AN$13,"", IF(MAX(AO$2:AO6)>0,"", IF(AND($D7>=(AN$13*$A$18),AM7=""),$A7+$A$18-$G6,AL7+$A$18 ))) ->  | AP7: =IF($E7<AP$13,"", IF(MAX(AQ$2:AQ6)>0,"", IF(AND($D7>=(AP$13*$A$18),AO7=""),$A7+$A$18-$G6,AN7+$A$18 ))) ->  | AR7: =IF($E7<AR$13,"", IF(MAX(AS$2:AS6)>0,"", IF(AND($D7>=(AR$13*$A$18),AQ7=""),$A7+$A$18-$G6,AP7+$A$18 ))) ->  | AT7: =IF($E7<AT$13,"", IF(MAX(AU$2:AU6)>0,"", IF(AND($D7>=(AT$13*$A$18),AS7=""),$A7+$A$18-$G6,AR7+$A$18 ))) ->  | AV7: =IF($E7<AV$13,"", IF(MAX(AW$2:AW6)>0,"", IF(AND($D7>=(AV$13*$A$18),AU7=""),$A7+$A$18-$G6,AT7+$A$18 ))) -> 
A8: =IF(Calculator!$E$13>=6,B7+Calculator!N9,"") ->  | B8: =IF(B7>=TODAY(),"",IF(Calculator!$E$13>=7,Calculator!M10,IF(A8>TODAY(),A8+365.25*21,TODAY()))) ->  | D8: =IF(A8="","",SUM(C$2:C8)) ->  | J8: =IF(OR(MAX(K$2:K7)>0,E8<1),"", IF(D8>=$A$18,A8+$A$18-G7,"" )) ->  | K8: =IF(OR(MAX(K$2:K7)>0,AND(K7>0,D8<$A$18)),"",IF(AND(K7>0,D8=""),G$13,D8-$A$18)) ->  | L8: =IF($E8<L$13,"", IF(MAX(M$2:M7)>0,"", IF(AND($D8>=(L$13*$A$18),K8=""),$A8+$A$18-$G7,J8+$A$18 ))) ->  | N8: =IF($E8<N$13,"", IF(MAX(O$2:O7)>0,"", IF(AND($D8>=(N$13*$A$18),M8=""),$A8+$A$18-$G7,L8+$A$18 ))) ->  | P8: =IF($E8<P$13,"", IF(MAX(Q$2:Q7)>0,"", IF(AND($D8>=(P$13*$A$18),O8=""),$A8+$A$18-$G7,N8+$A$18 ))) ->  | R8: =IF($E8<R$13,"", IF(MAX(S$2:S7)>0,"", IF(AND($D8>=(R$13*$A$18),Q8=""),$A8+$A$18-$G7,P8+$A$18 ))) ->  | T8: =IF($E8<T$13,"", IF(MAX(U$2:U7)>0,"", IF(AND($D8>=(T$13*$A$18),S8=""),$A8+$A$18-$G7,R8+$A$18 ))) ->  | V8: =IF($E8<V$13,"", IF(MAX(W$2:W7)>0,"", IF(AND($D8>=(V$13*$A$18),U8=""),$A8+$A$18-$G7,T8+$A$18 ))) ->  | X8: =IF($E8<X$13,"", IF(MAX(Y$2:Y7)>0,"", IF(AND($D8>=(X$13*$A$18),W8=""),$A8+$A$18-$G7,V8+$A$18 ))) ->  | Z8: =IF($E8<Z$13,"", IF(MAX(AA$2:AA7)>0,"", IF(AND($D8>=(Z$13*$A$18),Y8=""),$A8+$A$18-$G7,X8+$A$18 ))) ->  | AB8: =IF($E8<AB$13,"", IF(MAX(AC$2:AC7)>0,"", IF(AND($D8>=(AB$13*$A$18),AA8=""),$A8+$A$18-$G7,Z8+$A$18 ))) ->  | AD8: =IF($E8<AD$13,"", IF(MAX(AE$2:AE7)>0,"", IF(AND($D8>=(AD$13*$A$18),AC8=""),$A8+$A$18-$G7,AB8+$A$18 ))) ->  | AF8: =IF($E8<AF$13,"", IF(MAX(AG$2:AG7)>0,"", IF(AND($D8>=(AF$13*$A$18),AE8=""),$A8+$A$18-$G7,AD8+$A$18 ))) ->  | AH8: =IF($E8<AH$13,"", IF(MAX(AI$2:AI7)>0,"", IF(AND($D8>=(AH$13*$A$18),AG8=""),$A8+$A$18-$G7,AF8+$A$18 ))) ->  | AJ8: =IF($E8<AJ$13,"", IF(MAX(AK$2:AK7)>0,"", IF(AND($D8>=(AJ$13*$A$18),AI8=""),$A8+$A$18-$G7,AH8+$A$18 ))) ->  | AL8: =IF($E8<AL$13,"", IF(MAX(AM$2:AM7)>0,"", IF(AND($D8>=(AL$13*$A$18),AK8=""),$A8+$A$18-$G7,AJ8+$A$18 ))) ->  | AN8: =IF($E8<AN$13,"", IF(MAX(AO$2:AO7)>0,"", IF(AND($D8>=(AN$13*$A$18),AM8=""),$A8+$A$18-$G7,AL8+$A$18 ))) ->  | AP8: =IF($E8<AP$13,"", IF(MAX(AQ$2:AQ7)>0,"", IF(AND($D8>=(AP$13*$A$18),AO8=""),$A8+$A$18-$G7,AN8+$A$18 ))) ->  | AR8: =IF($E8<AR$13,"", IF(MAX(AS$2:AS7)>0,"", IF(AND($D8>=(AR$13*$A$18),AQ8=""),$A8+$A$18-$G7,AP8+$A$18 ))) ->  | AT8: =IF($E8<AT$13,"", IF(MAX(AU$2:AU7)>0,"", IF(AND($D8>=(AT$13*$A$18),AS8=""),$A8+$A$18-$G7,AR8+$A$18 ))) ->  | AV8: =IF($E8<AV$13,"", IF(MAX(AW$2:AW7)>0,"", IF(AND($D8>=(AV$13*$A$18),AU8=""),$A8+$A$18-$G7,AT8+$A$18 ))) -> 
A9: =IF(Calculator!$E$13>=7,B8+Calculator!N10,"") ->  | B9: =IF(B8>=TODAY(),"",IF(Calculator!$E$13>=8,Calculator!M11,IF(A9>TODAY(),A9+365.25*21,TODAY()))) ->  | D9: =IF(A9="","",SUM(C$2:C9)) ->  | J9: =IF(OR(MAX(K$2:K8)>0,E9<1),"", IF(D9>=$A$18,A9+$A$18-G8,"" )) ->  | K9: =IF(OR(MAX(K$2:K8)>0,AND(K8>0,D9<$A$18)),"",IF(AND(K8>0,D9=""),G$13,D9-$A$18)) ->  | L9: =IF($E9<L$13,"", IF(MAX(M$2:M8)>0,"", IF(AND($D9>=(L$13*$A$18),K9=""),$A9+$A$18-$G8,J9+$A$18 ))) ->  | N9: =IF($E9<N$13,"", IF(MAX(O$2:O8)>0,"", IF(AND($D9>=(N$13*$A$18),M9=""),$A9+$A$18-$G8,L9+$A$18 ))) ->  | P9: =IF($E9<P$13,"", IF(MAX(Q$2:Q8)>0,"", IF(AND($D9>=(P$13*$A$18),O9=""),$A9+$A$18-$G8,N9+$A$18 ))) ->  | R9: =IF($E9<R$13,"", IF(MAX(S$2:S8)>0,"", IF(AND($D9>=(R$13*$A$18),Q9=""),$A9+$A$18-$G8,P9+$A$18 ))) ->  | T9: =IF($E9<T$13,"", IF(MAX(U$2:U8)>0,"", IF(AND($D9>=(T$13*$A$18),S9=""),$A9+$A$18-$G8,R9+$A$18 ))) ->  | V9: =IF($E9<V$13,"", IF(MAX(W$2:W8)>0,"", IF(AND($D9>=(V$13*$A$18),U9=""),$A9+$A$18-$G8,T9+$A$18 ))) ->  | X9: =IF($E9<X$13,"", IF(MAX(Y$2:Y8)>0,"", IF(AND($D9>=(X$13*$A$18),W9=""),$A9+$A$18-$G8,V9+$A$18 ))) ->  | Z9: =IF($E9<Z$13,"", IF(MAX(AA$2:AA8)>0,"", IF(AND($D9>=(Z$13*$A$18),Y9=""),$A9+$A$18-$G8,X9+$A$18 ))) ->  | AB9: =IF($E9<AB$13,"", IF(MAX(AC$2:AC8)>0,"", IF(AND($D9>=(AB$13*$A$18),AA9=""),$A9+$A$18-$G8,Z9+$A$18 ))) ->  | AD9: =IF($E9<AD$13,"", IF(MAX(AE$2:AE8)>0,"", IF(AND($D9>=(AD$13*$A$18),AC9=""),$A9+$A$18-$G8,AB9+$A$18 ))) ->  | AF9: =IF($E9<AF$13,"", IF(MAX(AG$2:AG8)>0,"", IF(AND($D9>=(AF$13*$A$18),AE9=""),$A9+$A$18-$G8,AD9+$A$18 ))) ->  | AH9: =IF($E9<AH$13,"", IF(MAX(AI$2:AI8)>0,"", IF(AND($D9>=(AH$13*$A$18),AG9=""),$A9+$A$18-$G8,AF9+$A$18 ))) ->  | AJ9: =IF($E9<AJ$13,"", IF(MAX(AK$2:AK8)>0,"", IF(AND($D9>=(AJ$13*$A$18),AI9=""),$A9+$A$18-$G8,AH9+$A$18 ))) ->  | AL9: =IF($E9<AL$13,"", IF(MAX(AM$2:AM8)>0,"", IF(AND($D9>=(AL$13*$A$18),AK9=""),$A9+$A$18-$G8,AJ9+$A$18 ))) ->  | AN9: =IF($E9<AN$13,"", IF(MAX(AO$2:AO8)>0,"", IF(AND($D9>=(AN$13*$A$18),AM9=""),$A9+$A$18-$G8,AL9+$A$18 ))) ->  | AP9: =IF($E9<AP$13,"", IF(MAX(AQ$2:AQ8)>0,"", IF(AND($D9>=(AP$13*$A$18),AO9=""),$A9+$A$18-$G8,AN9+$A$18 ))) ->  | AR9: =IF($E9<AR$13,"", IF(MAX(AS$2:AS8)>0,"", IF(AND($D9>=(AR$13*$A$18),AQ9=""),$A9+$A$18-$G8,AP9+$A$18 ))) ->  | AT9: =IF($E9<AT$13,"", IF(MAX(AU$2:AU8)>0,"", IF(AND($D9>=(AT$13*$A$18),AS9=""),$A9+$A$18-$G8,AR9+$A$18 ))) ->  | AV9: =IF($E9<AV$13,"", IF(MAX(AW$2:AW8)>0,"", IF(AND($D9>=(AV$13*$A$18),AU9=""),$A9+$A$18-$G8,AT9+$A$18 ))) -> 
A10: =IF(Calculator!$E$13>=8,B9+Calculator!N11,"") ->  | B10: =IF(B9>=TODAY(),"",IF(Calculator!$E$13>=9,Calculator!M12,IF(A10>TODAY(),A10+365.25*21,TODAY()))) ->  | D10: =IF(A10="","",SUM(C$2:C10)) ->  | J10: =IF(OR(MAX(K$2:K9)>0,E10<1),"", IF(D10>=$A$18,A10+$A$18-G9,"" )) ->  | K10: =IF(OR(MAX(K$2:K9)>0,AND(K9>0,D10<$A$18)),"",IF(AND(K9>0,D10=""),G$13,D10-$A$18)) ->  | L10: =IF($E10<L$13,"", IF(MAX(M$2:M9)>0,"", IF(AND($D10>=(L$13*$A$18),K10=""),$A10+$A$18-$G9,J10+$A$18 ))) ->  | N10: =IF($E10<N$13,"", IF(MAX(O$2:O9)>0,"", IF(AND($D10>=(N$13*$A$18),M10=""),$A10+$A$18-$G9,L10+$A$18 ))) ->  | P10: =IF($E10<P$13,"", IF(MAX(Q$2:Q9)>0,"", IF(AND($D10>=(P$13*$A$18),O10=""),$A10+$A$18-$G9,N10+$A$18 ))) ->  | R10: =IF($E10<R$13,"", IF(MAX(S$2:S9)>0,"", IF(AND($D10>=(R$13*$A$18),Q10=""),$A10+$A$18-$G9,P10+$A$18 ))) ->  | T10: =IF($E10<T$13,"", IF(MAX(U$2:U9)>0,"", IF(AND($D10>=(T$13*$A$18),S10=""),$A10+$A$18-$G9,R10+$A$18 ))) ->  | V10: =IF($E10<V$13,"", IF(MAX(W$2:W9)>0,"", IF(AND($D10>=(V$13*$A$18),U10=""),$A10+$A$18-$G9,T10+$A$18 ))) ->  | X10: =IF($E10<X$13,"", IF(MAX(Y$2:Y9)>0,"", IF(AND($D10>=(X$13*$A$18),W10=""),$A10+$A$18-$G9,V10+$A$18 ))) ->  | Z10: =IF($E10<Z$13,"", IF(MAX(AA$2:AA9)>0,"", IF(AND($D10>=(Z$13*$A$18),Y10=""),$A10+$A$18-$G9,X10+$A$18 ))) ->  | AB10: =IF($E10<AB$13,"", IF(MAX(AC$2:AC9)>0,"", IF(AND($D10>=(AB$13*$A$18),AA10=""),$A10+$A$18-$G9,Z10+$A$18 ))) ->  | AD10: =IF($E10<AD$13,"", IF(MAX(AE$2:AE9)>0,"", IF(AND($D10>=(AD$13*$A$18),AC10=""),$A10+$A$18-$G9,AB10+$A$18 ))) ->  | AF10: =IF($E10<AF$13,"", IF(MAX(AG$2:AG9)>0,"", IF(AND($D10>=(AF$13*$A$18),AE10=""),$A10+$A$18-$G9,AD10+$A$18 ))) ->  | AH10: =IF($E10<AH$13,"", IF(MAX(AI$2:AI9)>0,"", IF(AND($D10>=(AH$13*$A$18),AG10=""),$A10+$A$18-$G9,AF10+$A$18 ))) ->  | AJ10: =IF($E10<AJ$13,"", IF(MAX(AK$2:AK9)>0,"", IF(AND($D10>=(AJ$13*$A$18),AI10=""),$A10+$A$18-$G9,AH10+$A$18 ))) ->  | AL10: =IF($E10<AL$13,"", IF(MAX(AM$2:AM9)>0,"", IF(AND($D10>=(AL$13*$A$18),AK10=""),$A10+$A$18-$G9,AJ10+$A$18 ))) ->  | AN10: =IF($E10<AN$13,"", IF(MAX(AO$2:AO9)>0,"", IF(AND($D10>=(AN$13*$A$18),AM10=""),$A10+$A$18-$G9,AL10+$A$18 ))) ->  | AP10: =IF($E10<AP$13,"", IF(MAX(AQ$2:AQ9)>0,"", IF(AND($D10>=(AP$13*$A$18),AO10=""),$A10+$A$18-$G9,AN10+$A$18 ))) ->  | AR10: =IF($E10<AR$13,"", IF(MAX(AS$2:AS9)>0,"", IF(AND($D10>=(AR$13*$A$18),AQ10=""),$A10+$A$18-$G9,AP10+$A$18 ))) ->  | AT10: =IF($E10<AT$13,"", IF(MAX(AU$2:AU9)>0,"", IF(AND($D10>=(AT$13*$A$18),AS10=""),$A10+$A$18-$G9,AR10+$A$18 ))) ->  | AV10: =IF($E10<AV$13,"", IF(MAX(AW$2:AW9)>0,"", IF(AND($D10>=(AV$13*$A$18),AU10=""),$A10+$A$18-$G9,AT10+$A$18 ))) -> 
A11: =IF(Calculator!$E$13>=9,B10+Calculator!N12,"") ->  | B11: =IF(B10>=TODAY(),"",IF(Calculator!$E$13>=10,Calculator!M13,IF(A11>TODAY(),A11+365.25*21,TODAY()))) ->  | D11: =IF(A11="","",SUM(C$2:C11)) ->  | J11: =IF(OR(MAX(K$2:K10)>0,E11<1),"", IF(D11>=$A$18,A11+$A$18-G10,"" )) ->  | K11: =IF(OR(MAX(K$2:K10)>0,AND(K10>0,D11<$A$18)),"",IF(AND(K10>0,D11=""),G$13,D11-$A$18)) ->  | L11: =IF($E11<L$13,"", IF(MAX(M$2:M10)>0,"", IF(AND($D11>=(L$13*$A$18),K11=""),$A11+$A$18-$G10,J11+$A$18 ))) ->  | N11: =IF($E11<N$13,"", IF(MAX(O$2:O10)>0,"", IF(AND($D11>=(N$13*$A$18),M11=""),$A11+$A$18-$G10,L11+$A$18 ))) ->  | P11: =IF($E11<P$13,"", IF(MAX(Q$2:Q10)>0,"", IF(AND($D11>=(P$13*$A$18),O11=""),$A11+$A$18-$G10,N11+$A$18 ))) ->  | R11: =IF($E11<R$13,"", IF(MAX(S$2:S10)>0,"", IF(AND($D11>=(R$13*$A$18),Q11=""),$A11+$A$18-$G10,P11+$A$18 ))) ->  | T11: =IF($E11<T$13,"", IF(MAX(U$2:U10)>0,"", IF(AND($D11>=(T$13*$A$18),S11=""),$A11+$A$18-$G10,R11+$A$18 ))) ->  | V11: =IF($E11<V$13,"", IF(MAX(W$2:W10)>0,"", IF(AND($D11>=(V$13*$A$18),U11=""),$A11+$A$18-$G10,T11+$A$18 ))) ->  | X11: =IF($E11<X$13,"", IF(MAX(Y$2:Y10)>0,"", IF(AND($D11>=(X$13*$A$18),W11=""),$A11+$A$18-$G10,V11+$A$18 ))) ->  | Z11: =IF($E11<Z$13,"", IF(MAX(AA$2:AA10)>0,"", IF(AND($D11>=(Z$13*$A$18),Y11=""),$A11+$A$18-$G10,X11+$A$18 ))) ->  | AB11: =IF($E11<AB$13,"", IF(MAX(AC$2:AC10)>0,"", IF(AND($D11>=(AB$13*$A$18),AA11=""),$A11+$A$18-$G10,Z11+$A$18 ))) ->  | AD11: =IF($E11<AD$13,"", IF(MAX(AE$2:AE10)>0,"", IF(AND($D11>=(AD$13*$A$18),AC11=""),$A11+$A$18-$G10,AB11+$A$18 ))) ->  | AF11: =IF($E11<AF$13,"", IF(MAX(AG$2:AG10)>0,"", IF(AND($D11>=(AF$13*$A$18),AE11=""),$A11+$A$18-$G10,AD11+$A$18 ))) ->  | AH11: =IF($E11<AH$13,"", IF(MAX(AI$2:AI10)>0,"", IF(AND($D11>=(AH$13*$A$18),AG11=""),$A11+$A$18-$G10,AF11+$A$18 ))) ->  | AJ11: =IF($E11<AJ$13,"", IF(MAX(AK$2:AK10)>0,"", IF(AND($D11>=(AJ$13*$A$18),AI11=""),$A11+$A$18-$G10,AH11+$A$18 ))) ->  | AL11: =IF($E11<AL$13,"", IF(MAX(AM$2:AM10)>0,"", IF(AND($D11>=(AL$13*$A$18),AK11=""),$A11+$A$18-$G10,AJ11+$A$18 ))) ->  | AN11: =IF($E11<AN$13,"", IF(MAX(AO$2:AO10)>0,"", IF(AND($D11>=(AN$13*$A$18),AM11=""),$A11+$A$18-$G10,AL11+$A$18 ))) ->  | AP11: =IF($E11<AP$13,"", IF(MAX(AQ$2:AQ10)>0,"", IF(AND($D11>=(AP$13*$A$18),AO11=""),$A11+$A$18-$G10,AN11+$A$18 ))) ->  | AR11: =IF($E11<AR$13,"", IF(MAX(AS$2:AS10)>0,"", IF(AND($D11>=(AR$13*$A$18),AQ11=""),$A11+$A$18-$G10,AP11+$A$18 ))) ->  | AT11: =IF($E11<AT$13,"", IF(MAX(AU$2:AU10)>0,"", IF(AND($D11>=(AT$13*$A$18),AS11=""),$A11+$A$18-$G10,AR11+$A$18 ))) ->  | AV11: =IF($E11<AV$13,"", IF(MAX(AW$2:AW10)>0,"", IF(AND($D11>=(AV$13*$A$18),AU11=""),$A11+$A$18-$G10,AT11+$A$18 ))) -> 
A12: =IF(AND(Calculator!$E$13>=10,B11<TODAY()),B11+Calculator!N13,"") ->  | B12: =IF(B11>=TODAY(),"", IF(AND(Calculator!$E$13>=10,A12<=TODAY()),TODAY(), IF(A12>TODAY(),A12+365.25*21,TODAY()))) ->  | D12: =IF(A12="","",SUM(C$2:C12)) ->  | J12: =IF(OR(MAX(K$2:K11)>0,E12<1),"", IF(D12>=$A$18,A12+$A$18-G11,"" )) ->  | K12: =IF(OR(MAX(K$2:K11)>0,AND(K11>0,D12<$A$18)),"",IF(AND(K11>0,D12=""),G$13,D12-$A$18)) ->  | L12: =IF($E12<L$13,"", IF(MAX(M$2:M11)>0,"", IF(AND($D12>=(L$13*$A$18),K12=""),$A12+$A$18-$G11,J12+$A$18 ))) ->  | N12: =IF($E12<N$13,"", IF(MAX(O$2:O11)>0,"", IF(AND($D12>=(N$13*$A$18),M12=""),$A12+$A$18-$G11,L12+$A$18 ))) ->  | P12: =IF($E12<P$13,"", IF(MAX(Q$2:Q11)>0,"", IF(AND($D12>=(P$13*$A$18),O12=""),$A12+$A$18-$G11,N12+$A$18 ))) ->  | R12: =IF($E12<R$13,"", IF(MAX(S$2:S11)>0,"", IF(AND($D12>=(R$13*$A$18),Q12=""),$A12+$A$18-$G11,P12+$A$18 ))) ->  | T12: =IF($E12<T$13,"", IF(MAX(U$2:U11)>0,"", IF(AND($D12>=(T$13*$A$18),S12=""),$A12+$A$18-$G11,R12+$A$18 ))) ->  | V12: =IF($E12<V$13,"", IF(MAX(W$2:W11)>0,"", IF(AND($D12>=(V$13*$A$18),U12=""),$A12+$A$18-$G11,T12+$A$18 ))) ->  | X12: =IF($E12<X$13,"", IF(MAX(Y$2:Y11)>0,"", IF(AND($D12>=(X$13*$A$18),W12=""),$A12+$A$18-$G11,V12+$A$18 ))) ->  | Z12: =IF($E12<Z$13,"", IF(MAX(AA$2:AA11)>0,"", IF(AND($D12>=(Z$13*$A$18),Y12=""),$A12+$A$18-$G11,X12+$A$18 ))) ->  | AB12: =IF($E12<AB$13,"", IF(MAX(AC$2:AC11)>0,"", IF(AND($D12>=(AB$13*$A$18),AA12=""),$A12+$A$18-$G11,Z12+$A$18 ))) ->  | AD12: =IF($E12<AD$13,"", IF(MAX(AE$2:AE11)>0,"", IF(AND($D12>=(AD$13*$A$18),AC12=""),$A12+$A$18-$G11,AB12+$A$18 ))) ->  | AF12: =IF($E12<AF$13,"", IF(MAX(AG$2:AG11)>0,"", IF(AND($D12>=(AF$13*$A$18),AE12=""),$A12+$A$18-$G11,AD12+$A$18 ))) ->  | AH12: =IF($E12<AH$13,"", IF(MAX(AI$2:AI11)>0,"", IF(AND($D12>=(AH$13*$A$18),AG12=""),$A12+$A$18-$G11,AF12+$A$18 ))) ->  | AJ12: =IF($E12<AJ$13,"", IF(MAX(AK$2:AK11)>0,"", IF(AND($D12>=(AJ$13*$A$18),AI12=""),$A12+$A$18-$G11,AH12+$A$18 ))) ->  | AL12: =IF($E12<AL$13,"", IF(MAX(AM$2:AM11)>0,"", IF(AND($D12>=(AL$13*$A$18),AK12=""),$A12+$A$18-$G11,AJ12+$A$18 ))) ->  | AN12: =IF($E12<AN$13,"", IF(MAX(AO$2:AO11)>0,"", IF(AND($D12>=(AN$13*$A$18),AM12=""),$A12+$A$18-$G11,AL12+$A$18 ))) ->  | AP12: =IF($E12<AP$13,"", IF(MAX(AQ$2:AQ11)>0,"", IF(AND($D12>=(AP$13*$A$18),AO12=""),$A12+$A$18-$G11,AN12+$A$18 ))) ->  | AR12: =IF($E12<AR$13,"", IF(MAX(AS$2:AS11)>0,"", IF(AND($D12>=(AR$13*$A$18),AQ12=""),$A12+$A$18-$G11,AP12+$A$18 ))) ->  | AT12: =IF($E12<AT$13,"", IF(MAX(AU$2:AU11)>0,"", IF(AND($D12>=(AT$13*$A$18),AS12=""),$A12+$A$18-$G11,AR12+$A$18 ))) ->  | AV12: =IF($E12<AV$13,"", IF(MAX(AW$2:AW11)>0,"", IF(AND($D12>=(AV$13*$A$18),AU12=""),$A12+$A$18-$G11,AT12+$A$18 ))) -> 
G13: =IF(Calculator!E13="",G2, IF(Calculator!E13=1,G3, IF(Calculator!E13=2,G4, IF(Calculator!E13=3,G5, IF(Calculator!E13=4,G6, IF(Calculator!E13=5,G7, IF(Calculator!E13=6,G8, IF(Calculator!E13=7,G9, IF(Calculator!E13=8,G10, IF(Calculator!E13=9,G11, IF(AND(Calculator!E13>=10,A12=""),G11, G12))))))))))) ->  | L13: 2 | N13: 3 | P13: 4 | R13: 5 | T13: 6 | V13: 7 | X13: 8 | Z13: 9 | AB13: 10 | AD13: 11 | AF13: 12 | AH13: 13 | AJ13: 14 | AL13: 15 | AN13: 16 | AP13: 17 | AR13: 18 | AT13: 19 | AV13: 20
A18: 365.2499
A20: PastTime | J20: =IF(AND(Calculator!E13="",'Time Accounting'!D2<$A$18),0,MAX(J2:J12)) ->  | L20: =MAX(L2:L12) ->  | N20: =MAX(N2:N12) ->  | P20: =MAX(P2:P12) ->  | R20: =MAX(R2:R12) ->  | T20: =MAX(T2:T12) ->  | V20: =MAX(V2:V12) ->  | X20: =MAX(X2:X12) ->  | Z20: =MAX(Z2:Z12) ->  | AB20: =MAX(AB2:AB12) ->  | AD20: =MAX(AD2:AD12) ->  | AF20: =MAX(AF2:AF12) ->  | AH20: =MAX(AH2:AH12) ->  | AJ20: =MAX(AJ2:AJ12) ->  | AL20: =MAX(AL2:AL12) ->  | AN20: =MAX(AN2:AN12) ->  | AP20: =MAX(AP2:AP12) ->  | AR20: =MAX(AR2:AR12) ->  | AT20: =MAX(AT2:AT12) ->  | AV20: =MAX(AV2:AV12) -> 
A21: FutureTime | J21: =IF(J20=0,TODAY()+$A$18-$G$13,"") ->  | L21: =IF(AND(L20=0,J20>0),TODAY()+$A$18-$G$13, IF(AND(L20=0,J20=0),J21+$A$18, "")) ->  | N21: =IF(AND(N20=0,L20>0),TODAY()+$A$18-$G$13, IF(AND(N20=0,L20=0),L21+$A$18, "")) ->  | P21: =IF(AND(P20=0,N20>0),TODAY()+$A$18-$G$13, IF(AND(P20=0,N20=0),N21+$A$18, "")) ->  | R21: =IF(AND(R20=0,P20>0),TODAY()+$A$18-$G$13, IF(AND(R20=0,P20=0),P21+$A$18, "")) ->  | T21: =IF(AND(T20=0,R20>0),TODAY()+$A$18-$G$13, IF(AND(T20=0,R20=0),R21+$A$18, "")) ->  | V21: =IF(AND(V20=0,T20>0),TODAY()+$A$18-$G$13, IF(AND(V20=0,T20=0),T21+$A$18, "")) ->  | X21: =IF(AND(X20=0,V20>0),TODAY()+$A$18-$G$13, IF(AND(X20=0,V20=0),V21+$A$18, "")) ->  | Z21: =IF(AND(Z20=0,X20>0),TODAY()+$A$18-$G$13, IF(AND(Z20=0,X20=0),X21+$A$18, "")) ->  | AB21: =IF(AND(AB20=0,Z20>0),TODAY()+$A$18-$G$13, IF(AND(AB20=0,Z20=0),Z21+$A$18, "")) ->  | AD21: =IF(AND(AD20=0,AB20>0),TODAY()+$A$18-$G$13, IF(AND(AD20=0,AB20=0),AB21+$A$18, "")) ->  | AF21: =IF(AND(AF20=0,AD20>0),TODAY()+$A$18-$G$13, IF(AND(AF20=0,AD20=0),AD21+$A$18, "")) ->  | AH21: =IF(AND(AH20=0,AF20>0),TODAY()+$A$18-$G$13, IF(AND(AH20=0,AF20=0),AF21+$A$18, "")) ->  | AJ21: =IF(AND(AJ20=0,AH20>0),TODAY()+$A$18-$G$13, IF(AND(AJ20=0,AH20=0),AH21+$A$18, "")) ->  | AL21: =IF(AND(AL20=0,AJ20>0),TODAY()+$A$18-$G$13, IF(AND(AL20=0,AJ20=0),AJ21+$A$18, "")) ->  | AN21: =IF(AND(AN20=0,AL20>0),TODAY()+$A$18-$G$13, IF(AND(AN20=0,AL20=0),AL21+$A$18, "")) ->  | AP21: =IF(AND(AP20=0,AN20>0),TODAY()+$A$18-$G$13, IF(AND(AP20=0,AN20=0),AN21+$A$18, "")) ->  | AR21: =IF(AND(AR20=0,AP20>0),TODAY()+$A$18-$G$13, IF(AND(AR20=0,AP20=0),AP21+$A$18, "")) ->  | AT21: =IF(AND(AT20=0,AR20>0),TODAY()+$A$18-$G$13, IF(AND(AT20=0,AR20=0),AR21+$A$18, "")) ->  | AV21: =IF(AND(AV20=0,AT20>0),TODAY()+$A$18-$G$13, IF(AND(AV20=0,AT20=0),AT21+$A$18, "")) -> 
A22: Timeline | J22: =MAX(J20:J21) ->  | L22: =MAX(L20:L21) ->  | N22: =MAX(N20:N21) ->  | P22: =MAX(P20:P21) ->  | R22: =MAX(R20:R21) ->  | T22: =MAX(T20:T21) ->  | V22: =MAX(V20:V21) ->  | X22: =MAX(X20:X21) ->  | Z22: =MAX(Z20:Z21) ->  | AB22: =MAX(AB20:AB21) ->  | AD22: =MAX(AD20:AD21) ->  | AF22: =MAX(AF20:AF21) ->  | AH22: =MAX(AH20:AH21) ->  | AJ22: =MAX(AJ20:AJ21) ->  | AL22: =MAX(AL20:AL21) ->  | AN22: =MAX(AN20:AN21) ->  | AP22: =MAX(AP20:AP21) ->  | AR22: =MAX(AR20:AR21) ->  | AT22: =MAX(AT20:AT21) ->  | AV22: =MAX(AV20:AV21) -> 

Sheet GHR_RecidRates
A1: Year | B1: p at risk | C1: logit hazard | D1: Hazard rate | E1: p surviving | F1: cumulative surv | G1: recidivism rate | I1: err | J1: 0 | K1: 1 | L1: 2 | M1: 3 | N1: 4 | O1: 5 | P1: 6 | Q1: 7 | R1: 8 | S1: 9 | T1: 10 | U1: 11 | V1: 12 | W1: 13 | X1: 14 | Y1: 15 | Z1: 16 | AA1: 17 | AB1: 18 | AC1: 19 | AE1: 20 | AF1: 19 | AG1: 18 | AH1: 17 | AI1: 16 | AJ1: 15 | AK1: 14 | AL1: 13 | AM1: 12 | AN1: 11 | AO1: 10 | AP1: 9 | AQ1: 8 | AR1: 7 | AS1: 6 | AT1: 5 | AU1: 4 | AV1: 3 | AW1: 2 | AX1: 1
A2: 1 | B2: 1 | C2: =(LN(D2/(1-D2))) -> -2.016577517 | D2: =Get_HR!C6 -> 0.1174733469 | E2: =1-D2 -> 0.8825266531 | F2: =B2*E2 -> 0.8825266531 | G2: =100*(1-F2) -> 11.74733469 | H2: =Get_HR!$C$2 -> 0 | I2: =IF(A2=Get_HR!$C$3,(H2-G2),"") ->  | J2: =E2 -> 0.8825266531 | AE2: =100*(1-$J$21) -> 62.26548576 | AF2: =100*(1-$J$20) -> 61.84062864 | AG2: =100*(1-$J$19) -> 61.35134168 | AH2: =100*(1-$J$18) -> 60.78698311 | AI2: =100*(1-$J$17) -> 60.13489055 | AJ2: =100*(1-$J$16) -> 59.37991961 | AK2: =100*(1-$J$15) -> 58.5038546 | AL2: =100*(1-$J$14) -> 57.48464949 | AM2: =100*(1-$J$13) -> 56.29544132 | AN2: =100*(1-$J$12) -> 54.9032557 | AO2: =100*(1-$J$11) -> 53.2672912 | AP2: =100*(1-$J$10) -> 51.33662176 | AQ2: =100*(1-$J$9) -> 49.04708561 | AR2: =100*(1-$J$8) -> 46.31702327 | AS2: =100*(1-$J$7) -> 43.04136638 | AT2: =100*(1-$J$6) -> 39.08333109 | AU2: =100*(1-$J$5) -> 34.262582 | AV2: =100*(1-$J$4) -> 28.33811471 | AW2: =100*(1-$J$3) -> 20.98310625 | AX2: =100*(1-$J$2) -> 11.74733469 | AY2: 0
A3: 2 | B3: =F2 -> 0.8825266531 | C3: =C2-0.13 -> -2.146577517 | D3: =1/(1+EXP(-C3)) -> 0.1046514746 | E3: =1-D3 -> 0.8953485254 | F3: =B3*E3 -> 0.7901689375 | G3: =100*(1-F3) -> 20.98310625 | H3: =Get_HR!$C$2 -> 0 | I3: =IF(A3=Get_HR!$C$3,(H3-G3),"") ->  | J3: =J2*E3 -> 0.7901689375 | K3: =E3 -> 0.8953485254 | AE3: =100*(1-$K$21) -> 57.24263499 | AF3: =100*(1-$K$20) -> 56.76122502 | AG3: =100*(1-$K$19) -> 56.20680896 | AH3: =100*(1-$K$18) -> 55.56732847 | AI3: =100*(1-$K$17) -> 54.8284357 | AJ3: =100*(1-$K$16) -> 53.97297039 | AK3: =100*(1-$K$15) -> 52.98029215 | AL3: =100*(1-$K$14) -> 51.82542038 | AM3: =100*(1-$K$13) -> 50.47791641 | AN3: =100*(1-$K$12) -> 48.90041662 | AO3: =100*(1-$K$11) -> 47.04668847 | AP3: =100*(1-$K$10) -> 44.85902712 | AQ3: =100*(1-$K$9) -> 42.26473023 | AR3: =100*(1-$K$8) -> 39.1712686 | AS3: =100*(1-$K$7) -> 35.45958819 | AT3: =100*(1-$K$6) -> 30.97469782 | AU3: =100*(1-$K$5) -> 25.51225759 | AV3: =100*(1-$K$4) -> 18.79918296 | AW3: =100*(1-$K$3) -> 10.46514746 | AX3: 0
A4: 3 | B4: =F3 -> 0.7901689375 | C4: =C3-0.13 -> -2.276577517 | D4: =1/(1+EXP(-C4)) -> 0.09308146784 | E4: =1-D4 -> 0.9069185322 | F4: =B4*E4 -> 0.7166188529 | G4: =100*(1-F4) -> 28.33811471 | H4: =Get_HR!$C$2 -> 0 | I4: =IF(A4=Get_HR!$C$3,(H4-G4),"") ->  | J4: =J3*E4 -> 0.7166188529 | K4: =K3*E4 -> 0.8120081704 | L4: =E4 -> 0.9069185322 | AE4: =100*(1-$L$21) -> 52.24500427 | AF4: =100*(1-$L$20) -> 51.70732542 | AG4: =100*(1-$L$19) -> 51.08810726 | AH4: =100*(1-$L$18) -> 50.37388205 | AI4: =100*(1-$L$17) -> 49.5486249 | AJ4: =100*(1-$L$16) -> 48.59316981 | AK4: =100*(1-$L$15) -> 47.48446385 | AL4: =100*(1-$L$14) -> 46.19460663 | AM4: =100*(1-$L$13) -> 44.68960167 | AN4: =100*(1-$L$12) -> 42.92771816 | AO4: =100*(1-$L$11) -> 40.85731977 | AP4: =100*(1-$L$10) -> 38.4139569 | AQ4: =100*(1-$L$9) -> 35.51642949 | AR4: =100*(1-$L$8) -> 32.06139322 | AS4: =100*(1-$L$7) -> 27.91587859 | AT4: =100*(1-$L$6) -> 22.90677852 | AU4: =100*(1-$L$5) -> 16.80586912 | AV4: =100*(1-$L$4) -> 9.308146784 | AW4: 0
A5: 4 | B5: 0.7166188529 | C5: -2.406577517 | D5: 0.08267250113 | E5: =1-D5 -> 0.9173274989 | F5: 0.65737418 | G5: 34.262582 | H5: =Get_HR!$C$2 -> 0 | I5: =IF(A5=Get_HR!$C$3,(H5-G5),"") ->  | J5: 0.65737418 | K5: =K4*E5 -> 0.7448774241 | L5: =L4*E5 -> 0.8319413088 | M5: =E5 -> 0.9173274989 | AE5: =100*(1-$M$21) -> 47.34367637 | AF5: =100*(1-$M$20) -> 46.75081292 | AG5: =100*(1-$M$19) -> 46.06804139 | AH5: =100*(1-$M$18) -> 45.28051176 | AI5: =100*(1-$M$17) -> 44.37055446 | AJ5: =100*(1-$M$16) -> 43.31703635 | AK5: =100*(1-$M$15) -> 42.0945385 | AL5: =100*(1-$M$14) -> 40.67229694 | AM5: =100*(1-$M$13) -> 39.01282599 | AN5: =100*(1-$M$12) -> 37.0701118 | AO5: =100*(1-$M$11) -> 34.78721833 | AP5: =100*(1-$M$10) -> 32.09308122 | AQ5: =100*(1-$M$9) -> 28.89816646 | AR5: =100*(1-$M$8) -> 25.08852299 | AS5: =100*(1-$M$7) -> 20.51753399 | AT5: =100*(1-$M$6) -> 14.99432557 | AU5: =100*(1-$M$5) -> 8.267250113 | AV5: 0
A6: 5 | B6: 0.65737418 | C6: -2.536577517 | D6: 0.07333341103 | E6: 0.926666589 | F6: 0.6091666891 | G6: 39.08333109 | H6: =Get_HR!$C$2 -> 0 | I6: =IF(A6=Get_HR!$C$3,(H6-G6),"") ->  | J6: 0.6091666891 | K6: 0.6902530218 | L6: =L5*E6 -> 0.7709322148 | M6: =M5*E6 -> 0.8500567443 | N6: =E6 -> 0.926666589 | AE6: =100*(1-$N$21) -> 42.59811933 | AF6: =100*(1-$N$20) -> 41.95182512 | AG6: =100*(1-$N$19) -> 41.20752002 | AH6: =100*(1-$N$18) -> 40.3490157 | AI6: =100*(1-$N$17) -> 39.35705011 | AJ6: =100*(1-$N$16) -> 38.20858557 | AK6: =100*(1-$N$15) -> 36.87591229 | AL6: =100*(1-$N$14) -> 35.32549375 | AM6: =100*(1-$N$13) -> 33.51646595 | AN6: =100*(1-$N$12) -> 31.39866811 | AO6: =100*(1-$N$11) -> 28.91003295 | AP6: =100*(1-$N$10) -> 25.97309155 | AQ6: =100*(1-$N$9) -> 22.4902408 | AR6: =100*(1-$N$8) -> 18.33726002 | AS6: =100*(1-$N$7) -> 13.35431881 | AT6: =100*(1-$N$6) -> 7.333341103 | AU6: 0
A7: 6 | B7: 0.6091666891 | C7: -2.666577517 | D7: 0.06497458502 | E7: 0.935025415 | F7: 0.5695863362 | G7: 43.04136638 | H7: =Get_HR!$C$2 -> 0 | I7: =IF(A7=Get_HR!$C$3,(H7-G7),"") ->  | J7: 0.5695863362 | K7: 0.6454041181 | L7: 0.7208412141 | M7: =M6*E7 -> 0.7948246601 | N7: =N6*E7 -> 0.8664568119 | O7: =E7 -> 0.935025415 | AE7: =100*(1-$O$21) -> 38.05551926 | AF7: =100*(1-$O$20) -> 37.35807941 | AG7: =100*(1-$O$19) -> 36.5548724 | AH7: =100*(1-$O$18) -> 35.62842881 | AI7: =100*(1-$O$17) -> 34.55796226 | AJ7: =100*(1-$O$16) -> 33.31861193 | AK7: =100*(1-$O$15) -> 31.88047517 | AL7: =100*(1-$O$14) -> 30.20736151 | AM7: =100*(1-$O$13) -> 28.25517306 | AN7: =100*(1-$O$12) -> 25.96977952 | AO7: =100*(1-$O$11) -> 23.28420178 | AP7: =100*(1-$O$10) -> 20.1148403 | AQ7: =100*(1-$O$9) -> 16.35636795 | AR7: =100*(1-$O$8) -> 11.87473364 | AS7: =100*(1-$O$7) -> 6.497458502 | AT7: 0
A8: 7 | B8: 0.5695863362 | C8: -2.796577517 | D8: 0.05750940087 | E8: 0.9424905991 | F8: 0.5368297673 | G8: 46.31702327 | H8: =Get_HR!$C$2 -> 0 | I8: =IF(A8=Get_HR!$C$3,(H8-G8),"") ->  | J8: 0.5368297673 | K8: 0.608287314 | L8: 0.6793860678 | M8: 0.7491147701 | N8: =N7*E8 -> 0.8166273998 | O8: =O7*E8 -> 0.8812526636 | P8: =E8 -> 0.9424905991 | AE8: =100*(1-$P$21) -> 33.75101922 | AF8: =100*(1-$P$20) -> 33.00511453 | AG8: =100*(1-$P$19) -> 32.14609295 | AH8: =100*(1-$P$18) -> 31.15527112 | AI8: =100*(1-$P$17) -> 30.01041823 | AJ8: =100*(1-$P$16) -> 28.68494589 | AK8: =100*(1-$P$15) -> 27.14687351 | AL8: =100*(1-$P$14) -> 25.35749577 | AM8: =100*(1-$P$13) -> 23.26965044 | AN8: =100*(1-$P$12) -> 20.82544571 | AO8: =100*(1-$P$11) -> 17.95324813 | AP8: =100*(1-$P$10) -> 14.56364883 | AQ8: =100*(1-$P$9) -> 10.54400158 | AR8: =100*(1-$P$8) -> 5.750940087 | AS8: 0
A9: 8 | B9: 0.5368297673 | C9: -2.926577517 | D9: 0.05085527109 | E9: 0.9491447289 | F9: 0.5095291439 | G9: 49.04708561 | H9: =Get_HR!$C$2 -> 0 | I9: =IF(A9=Get_HR!$C$3,(H9-G9),"") ->  | J9: 0.5095291439 | K9: 0.5773526977 | L9: 0.6448357051 | M9: 0.7110183354 | N9: 0.775097592 | O9: =O8*E9 -> 0.8364363205 | P9: =P8*E9 -> 0.8945599842 | Q9: =E9 -> 0.9491447289 | AE9: =100*(1-$Q$21) -> 29.7086031 | AF9: =100*(1-$Q$20) -> 28.91718439 | AG9: =100*(1-$Q$19) -> 28.00574657 | AH9: =100*(1-$Q$18) -> 26.95446623 | AI9: =100*(1-$Q$17) -> 25.73975609 | AJ9: =100*(1-$Q$16) -> 24.33340536 | AK9: =100*(1-$Q$15) -> 22.70148206 | AL9: =100*(1-$Q$14) -> 20.80291909 | AM9: =100*(1-$Q$13) -> 18.58767649 | AN9: =100*(1-$Q$12) -> 15.99432996 | AO9: =100*(1-$Q$11) -> 12.94687507 | AP9: =100*(1-$Q$10) -> 9.350447372 | AQ9: =100*(1-$Q$9) -> 5.085527109 | AR9: 0
A10: 9 | B10: 0.5095291439 | C10: -3.056577517 | D10: 0.04493435124 | E10: 0.9550656488 | F10: 0.4866337824 | G10: 51.33662176 | H10: =Get_HR!$C$2 -> 0 | I10: =IF(A10=Get_HR!$C$3,(H10-G10),"") ->  | J10: 0.4866337824 | K10: 0.5514097288 | L10: 0.615860431 | M10: 0.6790691878 | N10: 0.7402690845 | O10: 0.798851597 | P10: =P9*E10 -> 0.8543635117 | Q10: =Q9*E10 -> 0.9064955263 | R10: =E10 -> 0.9550656488 | AE10: =100*(1-$R$21) -> 25.94238291 | AF10: =100*(1-$R$20) -> 25.1085599 | AG10: =100*(1-$R$19) -> 24.14828715 | AH10: =100*(1-$R$18) -> 23.04067911 | AI10: =100*(1-$R$17) -> 21.76088467 | AJ10: =100*(1-$R$16) -> 20.27918153 | AK10: =100*(1-$R$15) -> 18.55981961 | AL10: =100*(1-$R$14) -> 16.55953145 | AM10: =100*(1-$R$13) -> 14.22559592 | AN10: =100*(1-$R$12) -> 11.49329762 | AO10: =100*(1-$R$11) -> 8.282559784 | AP10: =100*(1-$R$10) -> 4.493435124 | AQ10: 0
A11: 10 | B11: 0.4866337824 | C11: -3.186577517 | D11: 0.03967397074 | E11: 0.9603260293 | F11: 0.467327088 | G11: 53.2672912 | H11: =Get_HR!$C$2 -> 0 | I11: =IF(A11=Get_HR!$C$3,(H11-G11),"") ->  | J11: 0.467327088 | K11: 0.5295331153 | L11: 0.5914268023 | M11: 0.6521278167 | N11: 0.7108996705 | O11: 0.7671579822 | P11: 0.8204675187 | Q11: =Q10*E11 -> 0.8705312493 | R11: =R10*E11 -> 0.9171744022 | S11: =E11 -> 0.9603260293 | AE11: =100*(1-$S$21) -> 22.45808737 | AF11: =100*(1-$S$20) -> 21.58503429 | AG11: =100*(1-$S$19) -> 20.5795822 | AH11: =100*(1-$S$18) -> 19.41986292 | AI11: =100*(1-$S$17) -> 18.07985616 | AJ11: =100*(1-$S$16) -> 16.52844118 | AK11: =100*(1-$S$15) -> 14.72818596 | AL11: =100*(1-$S$14) -> 12.63378736 | AM11: =100*(1-$S$13) -> 10.1900438 | AN11: =100*(1-$S$12) -> 7.329195121 | AO11: =100*(1-$S$11) -> 3.967397074 | AP11: 0
A12: 11 | B12: 0.467327088 | C12: -3.316577517 | D12: 0.03500684085 | E12: 0.9649931591 | F12: 0.450967443 | G12: 54.9032557 | H12: =Get_HR!$C$2 -> 0 | I12: =IF(A12=Get_HR!$C$3,(H12-G12),"") ->  | J12: 0.450967443 | K12: 0.5109958338 | L12: 0.5707228184 | M12: 0.629298882 | N12: 0.6860133189 | O12: 0.7403022048 | P12: 0.7917455429 | Q12: 0.8400567004 | R12: =R11*E12 -> 0.8850670238 | S12: =S11*E12 -> 0.9267080488 | T12: =E12 -> 0.9649931591 | AE12: =100*(1-$T$21) -> 19.2545966 | AF12: =100*(1-$T$20) -> 18.34547505 | AG12: =100*(1-$T$19) -> 17.2984847 | AH12: =100*(1-$T$18) -> 16.09085392 | AI12: =100*(1-$T$17) -> 14.69548742 | AJ12: =100*(1-$T$16) -> 13.07997881 | AK12: =100*(1-$T$15) -> 11.2053496 | AL12: =100*(1-$T$14) -> 9.024425062 | AM12: =100*(1-$T$13) -> 6.479723074 | AN12: =100*(1-$T$12) -> 3.500684085 | AO12: 0
A13: 12 | B13: 0.450967443 | C13: -3.446577517 | D13: 0.03087108919 | E13: 0.9691289108 | F13: 0.4370455868 | G13: 56.29544132 | H13: =Get_HR!$C$2 -> 0 | I13: =IF(A13=Get_HR!$C$3,(H13-G13),"") ->  | J13: 0.4370455868 | K13: 0.4952208359 | L13: 0.5531039833 | M13: 0.6098717401 | N13: 0.6648353405 | O13: 0.7174482694 | P13: 0.7673034956 | Q13: 0.8141232351 | R13: 0.8577440408 | S13: =S12*E13 -> 0.898099562 | T13: =T12*E13 -> 0.9352027693 | U13: =E13 -> 0.9691289108 | AE13: =100*(1-$U$21) -> 16.32541367 | AF13: =100*(1-$U$20) -> 15.38331213 | AG13: =100*(1-$U$19) -> 14.29834034 | AH13: =100*(1-$U$18) -> 13.04690061 | AI13: =100*(1-$U$17) -> 11.60091471 | AJ13: =100*(1-$U$16) -> 9.926800652 | AK13: =100*(1-$U$15) -> 7.984165944 | AL13: =100*(1-$U$14) -> 5.724124492 | AM13: =100*(1-$U$13) -> 3.087108919 | AN13: 0
A14: 13 | B14: 0.4370455868 | C14: -3.576577517 | D14: 0.0272101631 | E14: 0.9727898369 | F14: 0.4251535051 | G14: 57.48464949 | H14: =Get_HR!$C$2 -> 0 | I14: =IF(A14=Get_HR!$C$3,(H14-G14),"") ->  | J14: 0.4251535051 | K14: 0.4817457962 | L14: 0.5380539337 | M14: 0.5932770306 | N14: 0.6467450625 | O14: 0.6979263849 | P14: 0.7464250423 | Q14: 0.7919708091 | R14: 0.8344046855 | S14: 0.8736621264 | T14: =T13*E14 -> 0.9097557494 | U14: =U13*E14 -> 0.9427587551 | V14: =E14 -> 0.9727898369 | AE14: =100*(1-$V$21) -> 13.66000395 | AF14: =100*(1-$V$20) -> 12.68789226 | AG14: =100*(1-$V$19) -> 11.56835927 | AH14: =100*(1-$V$18) -> 10.27705559 | AI14: =100*(1-$V$17) -> 8.785008575 | AJ14: =100*(1-$V$16) -> 7.057566498 | AK14: =100*(1-$V$15) -> 5.053050188 | AL14: =100*(1-$V$14) -> 2.72101631 | AM14: 0
A15: 14 | B15: 0.4251535051 | C15: -3.706577517 | D15: 0.02397263817 | E15: 0.9760273618 | F15: 0.414961454 | G15: 58.5038546 | H15: =Get_HR!$C$2 -> 0 | I15: =IF(A15=Get_HR!$C$3,(H15-G15),"") ->  | J15: 0.414961454 | K15: 0.4701970785 | L15: 0.5251553615 | M15: 0.579054615 | N15: 0.6312408771 | O15: 0.6811952483 | P15: 0.7285312649 | Q15: 0.7729851794 | R15: 0.8144018039 | S15: 0.8527181404 | T15: 0.887946504 | U15: =U14*E15 -> 0.9201583406 | V15: =V14*E15 -> 0.9494694981 | W15: =E15 -> 0.9760273618 | AE15: =100*(1-$W$21) -> 11.24496497 | AF15: =100*(1-$W$20) -> 10.24566209 | AG15: =100*(1-$W$19) -> 9.094814341 | AH15: =100*(1-$W$18) -> 7.767391259 | AI15: =100*(1-$W$17) -> 6.233609805 | AJ15: =100*(1-$W$16) -> 4.457848986 | AK15: =100*(1-$W$15) -> 2.397263817 | AL15: 0
A16: 15 | B16: 0.414961454 | C16: -3.836577517 | D16: 0.02111196109 | E16: 0.9788880389 | F16: 0.4062008039 | G16: 59.37991961 | H16: =Get_HR!$C$2 -> 0 | I16: =IF(A16=Get_HR!$C$3,(H16-G16),"") ->  | J16: 0.4062008039 | K16: 0.4602702961 | L16: 0.5140683019 | M16: 0.5668296365 | N16: 0.6179141443 | O16: 0.6668138807 | P16: 0.7131505411 | Q16: 0.7566659464 | R16: 0.7972081847 | S16: 0.8347155882 | T16: 0.8692002119 | U16: 0.9007319935 | V16: =V15*E16 -> 0.929424335 | W16: =W15*E16 -> 0.9554215101 | X16: =E16 -> 0.9788880389 | AE16: =100*(1-$X$21) -> 9.065013445 | AF16: =100*(1-$X$20) -> 8.04116624 | AG16: =100*(1-$X$19) -> 6.862052014 | AH16: =100*(1-$X$18) -> 5.502025509 | AI16: =100*(1-$X$17) -> 3.930572172 | AJ16: =100*(1-$X$16) -> 2.111196109 | AK16: 0
A17: 16 | B17: 0.4062008039 | C17: -3.966577517 | D17: 0.01858615072 | E17: 0.9814138493 | F17: 0.3986510945 | G17: 60.13489055 | H17: =Get_HR!$C$2 -> 0 | I17: =IF(A17=Get_HR!$C$3,(H17-G17),"") ->  | J17: 0.3986510945 | K17: 0.451715643 | L17: 0.504513751 | M17: 0.5562944554 | N17: 0.6064294989 | O17: 0.6544203774 | P17: 0.6998958177 | Q17: 0.7426024391 | R17: 0.7823911533 | S17: 0.8192014384 | T17: 0.8530451258 | U17: 0.8839908529 | V17: 0.9121499142 | W17: =W16*E17 -> 0.937663902 | X17: =X16*E17 -> 0.9606942783 | Y17: =E17 -> 0.9814138493 | AE17: =100*(1-$Y$21) -> 7.103792322 | AF17: =100*(1-$Y$20) -> 6.05786351 | AG17: =100*(1-$Y$19) -> 4.853318987 | AH17: =100*(1-$Y$18) -> 3.463960397 | AI17: =100*(1-$Y$17) -> 1.858615072 | AJ17: 0
A18: 17 | B18: 0.3986510945 | C18: =C17-0.13 -> -4.096577517 | D18: 0.01635747576 | E18: 0.9836425242 | F18: 0.3921301689 | G18: 60.78698311 | H18: =Get_HR!$C$2 -> 0 | I18: =IF(A18=Get_HR!$C$3,(H18-G18),"") ->  | J18: 0.3921301689 | K18: 0.4443267153 | L18: 0.4962611795 | M18: 0.5471948824 | N18: 0.596509843 | O18: 0.6437157119 | P18: 0.6884472888 | Q18: 0.7304553377 | R18: 0.7695932089 | S18: 0.8058013708 | T18: 0.8390914608 | U18: 0.8695309939 | V18: 0.8972294441 | W18: 0.9223260874 | X18: =X17*E18 -> 0.9449797449 | Y18: =Y17*E18 -> 0.965360396 | Z18: =E18 -> 0.9836425242 | AE18: =100*(1-$Z$21) -> 5.34451114 | AF18: =100*(1-$Z$20) -> 4.278774384 | AG18: =100*(1-$Z$19) -> 3.05141803 | AH18: =100*(1-$Z$18) -> 1.635747576 | AI18: 0
A19: 18 | B19: 0.3921301689 | C19: -4.226577517 | D19: 0.01439212335 | E19: 0.9856078766 | F19: 0.3864865832 | G19: 61.35134168 | H19: =Get_HR!$C$2 -> 0 | I19: =IF(A19=Get_HR!$C$3,(H19-G19),"") ->  | J19: 0.3864865832 | K19: 0.4379319104 | L19: 0.4891189274 | M19: 0.5393195861 | N19: 0.5879247998 | O19: 0.634451276 | P19: 0.6785390705 | Q19: 0.7199425343 | R19: 0.7585171285 | S19: 0.794204178 | T19: 0.827015153 | U19: 0.8570165966 | V19: 0.8843164073 | W19: 0.9090518566 | X19: 0.9313794799 | Y19: =Y18*E19 -> 0.9514668101 | Z19: =Z18*E19 -> 0.9694858197 | AA19: =E19 -> 0.9856078766 | AE19: =100*(1-$AA$21) -> 3.770438419 | AF19: =100*(1-$AA$20) -> 2.686979002 | AG19: =100*(1-$AA$19) -> 1.439212335 | AH19: 0
A20: 19 | B20: 0.3864865832 | C20: -4.356577517 | D20: 0.01265986906 | E20: 0.9873401309 | F20: 0.3815937136 | G20: 61.84062864 | H20: =Get_HR!$C$2 -> 0 | I20: =IF(A20=Get_HR!$C$3,(H20-G20),"") ->  | J20: 0.3815937136 | K20: 0.4323877498 | L20: 0.4829267458 | M20: 0.5324918708 | N20: 0.5804817488 | O20: 0.6264192059 | P20: 0.6699488547 | Q20: 0.7108281561 | R20: 0.748914401 | S20: 0.7841496571 | T20: 0.8165452495 | U20: 0.8461668787 | V20: 0.8731210774 | W20: 0.8975433791 | X20: 0.9195883376 | Y20: 0.9394213649 | Z20: =Z19*E20 -> 0.9572122562 | AA20: =AA19*E20 -> 0.97313021 | AB20: =E20 -> 0.9873401309 | AE20: =100*(1-$AB$21) -> 2.365267303 | AF20: =100*(1-$AB$20) -> 1.265986906 | AG20: 0
A21: 20 | B21: 0.3815937136 | C21: -4.486577517 | D21: 0.01113375586 | E21: 0.9888662441 | F21: 0.3773451424 | G21: 62.26548576 | H21: =Get_HR!$C$2 -> 0 | I21: =IF(A21=Get_HR!$C$3,(H21-G21),"") ->  | J21: 0.3773451424 | K21: 0.4275736501 | L21: 0.4775499573 | M21: 0.5265632363 | N21: 0.5740188067 | O21: 0.6194448074 | P21: 0.6624898078 | Q21: 0.702913969 | R21: 0.7405761709 | S21: 0.7754191263 | T21: 0.807454034 | U21: 0.8367458633 | V21: 0.8633999605 | W21: 0.8875503503 | X21: 0.9093498656 | Y21: 0.9289620768 | Z21: 0.9465548886 | AA21: =AA20*E21 -> 0.9622956158 | AB21: =AB20*E21 -> 0.976347327 | AC21: =E21 -> 0.9888662441 | AE21: =100*(1-$AC$21) -> 1.113375586 | AF21: 0
AE22: 0
J23: =1-J21 -> 0.6226548576 | K23: =1-K21 -> 0.5724263499 | L23: 0.5224500427 | M23: 0.4734367637 | N23: 0.4259811933 | O23: 0.3805551926 | P23: 0.3375101922 | Q23: 0.297086031 | R23: 0.2594238291 | S23: 0.2245808737 | T23: 0.192545966 | U23: 0.1632541367 | V23: 0.1366000395 | W23: 0.1124496497 | X23: 0.09065013445 | Y23: 0.07103792322 | Z23: 0.0534451114 | AA23: 0.03770438419 | AB23: 0.02365267303 | AC23: 0.01113375586
A25: *** Will have to do time free decrement separately for those without NS offense event

Sheet GHR_NS_RecidRates
A1: Year | B1: p at risk | C1: logit hazard | D1: Hazard rate | E1: p surviving | F1: cumulative surv | G1: recidivism rate | J1: 0 | K1: 1 | L1: 2 | M1: 3 | N1: 4 | O1: 5 | P1: 6 | Q1: 7 | R1: 8 | S1: 9 | T1: 10 | U1: 11 | V1: 12 | W1: 13 | X1: 14 | Y1: 15 | Z1: 16 | AA1: 17 | AB1: 18 | AC1: 19 | AE1: 20 | AF1: 19 | AG1: 18 | AH1: 17 | AI1: 16 | AJ1: 15 | AK1: 14 | AL1: 13 | AM1: 12 | AN1: 11 | AO1: 10 | AP1: 9 | AQ1: 8 | AR1: 7 | AS1: 6 | AT1: 5 | AU1: 4 | AV1: 3 | AW1: 2 | AX1: 1
A2: =Get_HR!C6 -> 0.1174733469 | B2: 1 | C2: =IF(AND(Calculator!$E$9>=Calculator!I5,Calculator!$E$9<Calculator!I6), (LN(A2/(1 - A2)))+(0.44), (LN(A2/(1 - A2))-(0.135)) ) ->  | D2: =(1/(1+EXP(-1*C2))) ->  | E2: =IF(Calculator!$E$9>Calculator!I6,1,1-D2) ->  | F2: =B2*E2 ->  | G2: =100*(1-F2) ->  | J2: =E2 ->  | AE2: =100*(1-$J$21) ->  | AF2: =100*(1-$J$20) ->  | AG2: =100*(1-$J$19) ->  | AH2: =100*(1-$J$18) ->  | AI2: =100*(1-$J$17) ->  | AJ2: =100*(1-$J$16) ->  | AK2: =100*(1-$J$15) ->  | AL2: =100*(1-$J$14) ->  | AM2: =100*(1-$J$13) ->  | AN2: =100*(1-$J$12) ->  | AO2: =100*(1-$J$11) ->  | AP2: =100*(1-$J$10) ->  | AQ2: =100*(1-$J$9) ->  | AR2: =100*(1-$J$8) ->  | AS2: =100*(1-$J$7) ->  | AT2: =100*(1-$J$6) ->  | AU2: =100*(1-$J$5) ->  | AV2: =100*(1-$J$4) ->  | AW2: =100*(1-$J$3) ->  | AX2: =100*(1-$J$2) ->  | AY2: 0
A3: 2 | B3: =F2 ->  | C3: =IF(AND(Calculator!$E$9>=Calculator!I6,Calculator!$E$9<Calculator!I7), (C2+0.44), (C2-0.135)) ->  | D3: =1/(1+EXP(-C3)) ->  | E3: =IF(Calculator!$E$9>Calculator!I7,1,1-D3) ->  | F3: =B3*E3 ->  | G3: =100*(1-F3) ->  | J3: =J2*E3 ->  | K3: =E3 ->  | AE3: =100*(1-$K$21) ->  | AF3: =100*(1-$K$20) ->  | AG3: =100*(1-$K$19) ->  | AH3: =100*(1-$K$18) ->  | AI3: =100*(1-$K$17) ->  | AJ3: =100*(1-$K$16) ->  | AK3: =100*(1-$K$15) ->  | AL3: =100*(1-$K$14) ->  | AM3: =100*(1-$K$13) ->  | AN3: =100*(1-$K$12) ->  | AO3: =100*(1-$K$11) ->  | AP3: =100*(1-$K$10) ->  | AQ3: =100*(1-$K$9) ->  | AR3: =100*(1-$K$8) ->  | AS3: =100*(1-$K$7) ->  | AT3: =100*(1-$K$6) ->  | AU3: =100*(1-$K$5) ->  | AV3: =100*(1-$K$4) ->  | AW3: =100*(1-$K$3) ->  | AX3: 0
A4: 3 | B4: =F3 ->  | C4: =IF(AND(Calculator!$E$9>=Calculator!I7,Calculator!$E$9<Calculator!I8), (C3+0.44), (C3-0.135)) ->  | D4: =1/(1+EXP(-C4)) ->  | E4: =IF(Calculator!$E$9>Calculator!I8,1,1-D4) ->  | F4: =B4*E4 ->  | G4: =100*(1-F4) ->  | J4: =J3*E4 ->  | K4: =K3*E4 ->  | L4: =E4 ->  | AE4: =100*(1-$L$21) ->  | AF4: =100*(1-$L$20) ->  | AG4: =100*(1-$L$19) ->  | AH4: =100*(1-$L$18) ->  | AI4: =100*(1-$L$17) ->  | AJ4: =100*(1-$L$16) ->  | AK4: =100*(1-$L$15) ->  | AL4: =100*(1-$L$14) ->  | AM4: =100*(1-$L$13) ->  | AN4: =100*(1-$L$12) ->  | AO4: =100*(1-$L$11) ->  | AP4: =100*(1-$L$10) ->  | AQ4: =100*(1-$L$9) ->  | AR4: =100*(1-$L$8) ->  | AS4: =100*(1-$L$7) ->  | AT4: =100*(1-$L$6) ->  | AU4: =100*(1-$L$5) ->  | AV4: =100*(1-$L$4) ->  | AW4: 0
A5: 4 | C5: =IF(AND(Calculator!$E$9>=Calculator!I8,Calculator!$E$9<Calculator!I9), (C4+0.44), (C4-0.135)) ->  | E5: =IF(Calculator!$E$9>Calculator!I9,1,1-D5) ->  | K5: =K4*E5 ->  | L5: =L4*E5 ->  | M5: =E5 ->  | AE5: =100*(1-$M$21) ->  | AF5: =100*(1-$M$20) ->  | AG5: =100*(1-$M$19) ->  | AH5: =100*(1-$M$18) ->  | AI5: =100*(1-$M$17) ->  | AJ5: =100*(1-$M$16) ->  | AK5: =100*(1-$M$15) ->  | AL5: =100*(1-$M$14) ->  | AM5: =100*(1-$M$13) ->  | AN5: =100*(1-$M$12) ->  | AO5: =100*(1-$M$11) ->  | AP5: =100*(1-$M$10) ->  | AQ5: =100*(1-$M$9) ->  | AR5: =100*(1-$M$8) ->  | AS5: =100*(1-$M$7) ->  | AT5: =100*(1-$M$6) ->  | AU5: =100*(1-$M$5) ->  | AV5: 0
A6: 5 | C6: =IF(AND(Calculator!$E$9>=Calculator!I9,Calculator!$E$9<Calculator!I10), (C5+0.44), (C5-0.135)) ->  | E6: =IF(Calculator!$E$9>Calculator!I10,1,1-D6) ->  | L6: =L5*E6 ->  | M6: =M5*E6 ->  | N6: =E6 ->  | AE6: =100*(1-$N$21) ->  | AF6: =100*(1-$N$20) ->  | AG6: =100*(1-$N$19) ->  | AH6: =100*(1-$N$18) ->  | AI6: =100*(1-$N$17) ->  | AJ6: =100*(1-$N$16) ->  | AK6: =100*(1-$N$15) ->  | AL6: =100*(1-$N$14) ->  | AM6: =100*(1-$N$13) ->  | AN6: =100*(1-$N$12) ->  | AO6: =100*(1-$N$11) ->  | AP6: =100*(1-$N$10) ->  | AQ6: =100*(1-$N$9) ->  | AR6: =100*(1-$N$8) ->  | AS6: =100*(1-$N$7) ->  | AT6: =100*(1-$N$6) ->  | AU6: 0
A7: 6 | C7: =IF(AND(Calculator!$E$9>=Calculator!I10,Calculator!$E$9<Calculator!I11), (C6+0.44), (C6-0.135)) ->  | E7: =IF(Calculator!$E$9>Calculator!I11,1,1-D7) ->  | M7: =M6*E7 ->  | N7: =N6*E7 ->  | O7: =E7 ->  | AE7: =100*(1-$O$21) ->  | AF7: =100*(1-$O$20) ->  | AG7: =100*(1-$O$19) ->  | AH7: =100*(1-$O$18) ->  | AI7: =100*(1-$O$17) ->  | AJ7: =100*(1-$O$16) ->  | AK7: =100*(1-$O$15) ->  | AL7: =100*(1-$O$14) ->  | AM7: =100*(1-$O$13) ->  | AN7: =100*(1-$O$12) ->  | AO7: =100*(1-$O$11) ->  | AP7: =100*(1-$O$10) ->  | AQ7: =100*(1-$O$9) ->  | AR7: =100*(1-$O$8) ->  | AS7: =100*(1-$O$7) ->  | AT7: 0
A8: 7 | C8: =IF(AND(Calculator!$E$9>=Calculator!I11,Calculator!$E$9<Calculator!I12), (C7+0.44), (C7-0.135)) ->  | E8: =IF(Calculator!$E$9>Calculator!I12,1,1-D8) ->  | N8: =N7*E8 ->  | O8: =O7*E8 ->  | P8: =E8 ->  | AE8: =100*(1-$P$21) ->  | AF8: =100*(1-$P$20) ->  | AG8: =100*(1-$P$19) ->  | AH8: =100*(1-$P$18) ->  | AI8: =100*(1-$P$17) ->  | AJ8: =100*(1-$P$16) ->  | AK8: =100*(1-$P$15) ->  | AL8: =100*(1-$P$14) ->  | AM8: =100*(1-$P$13) ->  | AN8: =100*(1-$P$12) ->  | AO8: =100*(1-$P$11) ->  | AP8: =100*(1-$P$10) ->  | AQ8: =100*(1-$P$9) ->  | AR8: =100*(1-$P$8) ->  | AS8: 0
A9: 8 | C9: =IF(AND(Calculator!$E$9>=Calculator!I12,Calculator!$E$9<Calculator!I13), (C8+0.44), (C8-0.135)) ->  | E9: =IF(Calculator!$E$9>Calculator!I13,1,1-D9) ->  | O9: =O8*E9 ->  | P9: =P8*E9 ->  | Q9: =E9 ->  | AE9: =100*(1-$Q$21) ->  | AF9: =100*(1-$Q$20) ->  | AG9: =100*(1-$Q$19) ->  | AH9: =100*(1-$Q$18) ->  | AI9: =100*(1-$Q$17) ->  | AJ9: =100*(1-$Q$16) ->  | AK9: =100*(1-$Q$15) ->  | AL9: =100*(1-$Q$14) ->  | AM9: =100*(1-$Q$13) ->  | AN9: =100*(1-$Q$12) ->  | AO9: =100*(1-$Q$11) ->  | AP9: =100*(1-$Q$10) ->  | AQ9: =100*(1-$Q$9) ->  | AR9: 0
A10: 9 | C10: =IF(AND(Calculator!$E$9>=Calculator!I13,Calculator!$E$9<Calculator!I14), (C9+0.44), (C9-0.135)) ->  | E10: =IF(Calculator!$E$9>Calculator!I14,1,1-D10) ->  | P10: =P9*E10 ->  | Q10: =Q9*E10 ->  | R10: =E10 ->  | AE10: =100*(1-$R$21) ->  | AF10: =100*(1-$R$20) ->  | AG10: =100*(1-$R$19) ->  | AH10: =100*(1-$R$18) ->  | AI10: =100*(1-$R$17) ->  | AJ10: =100*(1-$R$16) ->  | AK10: =100*(1-$R$15) ->  | AL10: =100*(1-$R$14) ->  | AM10: =100*(1-$R$13) ->  | AN10: =100*(1-$R$12) ->  | AO10: =100*(1-$R$11) ->  | AP10: =100*(1-$R$10) ->  | AQ10: 0
A11: 10 | C11: =IF(AND(Calculator!$E$9>=Calculator!I14,Calculator!$E$9<Calculator!I15), (C10+0.44), (C10-0.135)) ->  | E11: =IF(Calculator!$E$9>Calculator!I15,1,1-D11) ->  | Q11: =Q10*E11 ->  | R11: =R10*E11 ->  | S11: =E11 ->  | AE11: =100*(1-$S$21) ->  | AF11: =100*(1-$S$20) ->  | AG11: =100*(1-$S$19) ->  | AH11: =100*(1-$S$18) ->  | AI11: =100*(1-$S$17) ->  | AJ11: =100*(1-$S$16) ->  | AK11: =100*(1-$S$15) ->  | AL11: =100*(1-$S$14) ->  | AM11: =100*(1-$S$13) ->  | AN11: =100*(1-$S$12) ->  | AO11: =100*(1-$S$11) ->  | AP11: 0
A12: 11 | C12: =IF(AND(Calculator!$E$9>=Calculator!I15,Calculator!$E$9<Calculator!I16), (C11+0.44), (C11-0.135)) ->  | E12: =IF(Calculator!$E$9>Calculator!I16,1,1-D12) ->  | R12: =R11*E12 ->  | S12: =S11*E12 ->  | T12: =E12 ->  | AE12: =100*(1-$T$21) ->  | AF12: =100*(1-$T$20) ->  | AG12: =100*(1-$T$19) ->  | AH12: =100*(1-$T$18) ->  | AI12: =100*(1-$T$17) ->  | AJ12: =100*(1-$T$16) ->  | AK12: =100*(1-$T$15) ->  | AL12: =100*(1-$T$14) ->  | AM12: =100*(1-$T$13) ->  | AN12: =100*(1-$T$12) ->  | AO12: 0
A13: 12 | C13: =IF(AND(Calculator!$E$9>=Calculator!I16,Calculator!$E$9<Calculator!I17), (C12+0.44), (C12-0.135)) ->  | E13: =IF(Calculator!$E$9>Calculator!I17,1,1-D13) ->  | S13: =S12*E13 ->  | T13: =T12*E13 ->  | U13: =E13 ->  | AE13: =100*(1-$U$21) ->  | AF13: =100*(1-$U$20) ->  | AG13: =100*(1-$U$19) ->  | AH13: =100*(1-$U$18) ->  | AI13: =100*(1-$U$17) ->  | AJ13: =100*(1-$U$16) ->  | AK13: =100*(1-$U$15) ->  | AL13: =100*(1-$U$14) ->  | AM13: =100*(1-$U$13) ->  | AN13: 0
A14: 13 | C14: =IF(AND(Calculator!$E$9>=Calculator!I17,Calculator!$E$9<Calculator!I18), (C13+0.44), (C13-0.135)) ->  | E14: =IF(Calculator!$E$9>Calculator!I18,1,1-D14) ->  | T14: =T13*E14 ->  | U14: =U13*E14 ->  | V14: =E14 ->  | AE14: =100*(1-$V$21) ->  | AF14: =100*(1-$V$20) ->  | AG14: =100*(1-$V$19) ->  | AH14: =100*(1-$V$18) ->  | AI14: =100*(1-$V$17) ->  | AJ14: =100*(1-$V$16) ->  | AK14: =100*(1-$V$15) ->  | AL14: =100*(1-$V$14) ->  | AM14: 0
A15: 14 | C15: =IF(AND(Calculator!$E$9>=Calculator!I18,Calculator!$E$9<Calculator!I19), (C14+0.44), (C14-0.135)) ->  | E15: =IF(Calculator!$E$9>Calculator!I19,1,1-D15) ->  | U15: =U14*E15 ->  | V15: =V14*E15 ->  | W15: =E15 ->  | AE15: =100*(1-$W$21) ->  | AF15: =100*(1-$W$20) ->  | AG15: =100*(1-$W$19) ->  | AH15: =100*(1-$W$18) ->  | AI15: =100*(1-$W$17) ->  | AJ15: =100*(1-$W$16) ->  | AK15: =100*(1-$W$15) ->  | AL15: 0
A16: 15 | C16: =IF(AND(Calculator!$E$9>=Calculator!I19,Calculator!$E$9<Calculator!I20), (C15+0.44), (C15-0.135)) ->  | E16: =IF(Calculator!$E$9>Calculator!I20,1,1-D16) ->  | V16: =V15*E16 ->  | W16: =W15*E16 ->  | X16: =E16 ->  | AE16: =100*(1-$X$21) ->  | AF16: =100*(1-$X$20) ->  | AG16: =100*(1-$X$19) ->  | AH16: =100*(1-$X$18) ->  | AI16: =100*(1-$X$17) ->  | AJ16: =100*(1-$X$16) ->  | AK16: 0
A17: 16 | C17: =IF(AND(Calculator!$E$9>=Calculator!I20,Calculator!$E$9<Calculator!I21), (C16+0.44), (C16-0.135)) ->  | E17: =IF(Calculator!$E$9>Calculator!I21,1,1-D17) ->  | W17: =W16*E17 ->  | X17: =X16*E17 ->  | Y17: =E17 ->  | AE17: =100*(1-$Y$21) ->  | AF17: =100*(1-$Y$20) ->  | AG17: =100*(1-$Y$19) ->  | AH17: =100*(1-$Y$18) ->  | AI17: =100*(1-$Y$17) ->  | AJ17: 0
A18: 17 | C18: =IF(AND(Calculator!$E$9>=Calculator!I21,Calculator!$E$9<Calculator!I22), (C17+0.44), (C17-0.135)) ->  | E18: =IF(Calculator!$E$9>Calculator!I22,1,1-D18) ->  | X18: =X17*E18 ->  | Y18: =Y17*E18 ->  | Z18: =E18 ->  | AE18: =100*(1-$Z$21) ->  | AF18: =100*(1-$Z$20) ->  | AG18: =100*(1-$Z$19) ->  | AH18: =100*(1-$Z$18) ->  | AI18: 0
A19: 18 | C19: =IF(AND(Calculator!$E$9>=Calculator!I22,Calculator!$E$9<Calculator!I23), (C18+0.44), (C18-0.135)) ->  | E19: =IF(Calculator!$E$9>Calculator!I23,1,1-D19) ->  | Y19: =Y18*E19 ->  | Z19: =Z18*E19 ->  | AA19: =E19 ->  | AE19: =100*(1-$AA$21) ->  | AF19: =100*(1-$AA$20) ->  | AG19: =100*(1-$AA$19) ->  | AH19: 0
A20: 19 | C20: =IF(AND(Calculator!$E$9>=Calculator!I23,Calculator!$E$9<Calculator!I24), (C19+0.44), (C19-0.135)) ->  | E20: =IF(Calculator!$E$9>Calculator!I24,1,1-D20) ->  | Z20: =Z19*E20 ->  | AA20: =AA19*E20 ->  | AB20: =E20 ->  | AE20: =100*(1-$AB$21) ->  | AF20: =100*(1-$AB$20) ->  | AG20: 0
A21: 20 | C21: =IF(AND(Calculator!$E$9>=Calculator!I24,Calculator!$E$9<Calculator!I25), (C20+0.44), (C20-0.135)) ->  | E21: =IF(Calculator!$E$9>Calculator!I25,1,1-D21) ->  | AA21: =AA20*E21 ->  | AB21: =AB20*E21 ->  | AC21: =E21 ->  | AE21: =100*(1-$AC$21) ->  | AF21: 0
AE22: 0
J23: =1-J21 ->  | K23: =1-K21 -> 
A26: *** NOT done yet, must do NS increments separate from time free increment
